Cogmind - Beta 15 @@@ ROGUE MODE // 2025.10.04 @ 17:51:27 Player: N.W.L. Result: Destroyed by Architect with Modified Sigix Sheargun Performance ------------- Evolutions (9) 4500 Regions Visited (38) 7600 Robots Destroyed (549) 2745 Value Destroyed (27670) 27670 Prototype IDs (390) 7800 Alien Tech Used (3) 600 Bonus (33018) 33018 TOTAL SCORE: 83933 Bonus ------- High Alert Combat Kills 2490 Follower Combat Kills 2753 Entered Garrisons 600 Entered DSFs 500 Network Hubs Disabled 200 Aligned with FarCom 300 Met Imprinter 300 Acquired ECA 300 Met Zhirov 300 Met Warlord at Base 500 MAIN.C Attacked Warlord 500 Warlord Defense Kills 1728 Built Enhanced Grunts 300 A7 Reached Mainframe 300 Met R17 at Cetus 500 Met R17 at Research 2000 Destroyed MAIN.C Guards 500 Met MAIN.C 5000 Destroyed MAIN.C Shell 5000 Destroyed MAIN.C 10000 Met Architect 300 Destroyed A8 300 Destroyed A6 400 Friendly Fire -2053 Cogmind --------- Core Integrity 0/1600 Matter 95/300 Energy 465/490 System Corruption 6% Temperature Cool (11) Movement Treading (141) Location -1/Access_0 Parts ------- > --- POWER (3) -------- Reinforced Quantum Reactor Zero-point Reactor > --- PROPULSION (6) --- Advanced Heavy Treads Biometal Heavy Treads Experimental Biometal Heavy Treads > --- UTILITY (13) ----- Experimental Coolant Injector Huge Storage Unit Spectral Analyzer Experimental Targeting Computer Experimental Targeting Computer Experimental Core Analyzer Experimental Weapon Cycler Graphene Brace > --- WEAPON (3) ------- Hypervelocity Linear Accelerator > --- INVENTORY (25) --- Experimental Energy Well (600) Experimental Energy Well (600) Experimental Matter Compressor (151) Advanced Weapon Cycler Advanced Weapon Cycler Experimental Thermal Shield High-powered Tractor Beam Peak State ------------ > --- POWER ------------ Improved Quantum Reactor Vortex Chain Reactor > --- PROPULSION ------- Experimental Biometal Heavy Treads Experimental Biometal Heavy Treads Advanced Heavy Siege Treads > --- UTILITY ---------- Coolant Network Huge Storage Unit Spectral Analyzer Experimental Targeting Computer Experimental Target Analyzer Experimental Core Analyzer Advanced Weapon Cycler Advanced Transmission Jammer Centrium Medium Armor Plating Graphene Brace Advanced Force Field Experimental System Purifier > --- WEAPON ----------- Heavy Quantum Rifle Heavy Quantum Rifle Multirail > --- INVENTORY -------- Quantum Reactor Reinforced Quantum Reactor Zero-point Reactor Biometal Heavy Treads Advanced Heavy Siege Treads Coolant Network Experimental Coolant Injector Experimental Energy Well Experimental Energy Well Experimental Matter Compressor Experimental Targeting Computer Precision Energy Filter Particle Accelerator Advanced Weapon Cycler Advanced Powered Armor Experimental Focal Shield Experimental Force Field Dimensional Node Initializer Transdimensional Reconstructor Vortex Driver Vortex Driver Multirail [Rating: 252] Favorites ----------- Power Quantum Reactor Engine Heavy Deuterium Engine Power Core Fission Core Reactor Quantum Reactor Propulsion Light Treads Treads Light Treads Leg Advanced Myomer Leg Flight Unit Cooled Nuclear Pulse Thruster Utility High-capacity Storage Unit Device Coolant Network Storage High-capacity Storage Unit Processor Core Analyzer Hackware Hacking Suite Protection Centrium Medium Armor Plating Weapon Gauss Rifle Energy Gun Cooled Pulse Rifle Energy Cannon Enhanced Nova Cannon Ballistic Gun Gauss Rifle Ballistic Cannon Hypervelocity Gauss Cannon Launcher Grenade Launcher Special Weapon RU-N14's Throwing Claymores v3 Impact Weapon Makeshift Hammer Piercing Weapon CR-A16's Pointy Stick Build | -11 -10 -10 -10 -9 -8 -8 -8 -8 -7 -7 -7 -7 -6 -6 -6 -6 -6 -6 -5 -5 -5 -5 -4 -4 -4 -4 -4 -4 -4 -3 -3 -3 -3 -3 -2 -1 -1 -1 ------- Run | Yrd Mat Min Exi Min Mat Gar Mat Gar Fac Low Low Zio Pro Fac Ext Cet Arc Hub Fac Upp Upp War Pro Fac Was Fac Upp Upp Zhi Pro Res Gar Res DSF Res Acc Com Ac0 Slots Evolved 18 | . . . . . 4 . . . 2 . . . . 2 . . . . 2 . . . . 2 . . . . . . 2 . . . 2 2 . . Power 2 | . . . . . . . . . . . . . . 1 . . . . 1 . . . . . . . . . . . . . . . . . . . Propulsion 4 | . . . . . 1 . . . 1 . . . . . . . . . . . . . . . . . . . . . 1 . . . 1 . . . Utility 11 | . . . . . 2 . . . 1 . . . . 1 . . . . 1 . . . . 2 . . . . . . 1 . . . 1 2 . . Weapon 1 | . . . . . 1 . . . . . . . . . . . . . . . . . . . . . . . . . . . . . . . . . Parts Attached 384 | 7 12 4 5 2 35 8 12 11 11 6 1 . 1 24 10 7 2 6 2 5 5 14 5 1 6 20 3 1 5 2 20 17 . 11 15 25 41 22 Power 43 | 1 1 . . . 3 . 2 . 1 . . . . 3 . 2 . 1 . 1 . 2 1 . 2 2 1 1 . . 3 . . . 3 4 8 1 Engine 7 | 1 1 . . . 3 . 1 . 1 . . . . . . . . . . . . . . . . . . . . . . . . . . . . . Core 9 | . . . . . . . 1 . . . . . . 3 . . . . . 1 . 1 . . . 2 . 1 . . . . . . . . . . Reactor 27 | . . . . . . . . . . . . . . . . 2 . 1 . . . 1 1 . 2 . 1 . . . 3 . . . 3 4 8 1 Propulsion 75 | 2 2 . 2 . 9 2 3 7 2 3 . . 1 5 5 2 . . . . 2 . . . 1 1 . . 3 1 4 4 . 3 1 2 4 4 Treads 65 | 2 2 . 2 . 9 2 3 7 2 3 . . 1 4 5 2 . . . . 2 . . . 1 1 . . . . . 3 . 3 1 2 4 4 Leg 8 | . . . . . . . . . . . . . . 1 . . . . . . . . . . . . . . 3 1 2 1 . . . . . . Wheel . | . . . . . . . . . . . . . . . . . . . . . . . . . . . . . . . . . . . . . . . Hover . | . . . . . . . . . . . . . . . . . . . . . . . . . . . . . . . . . . . . . . . Flight 2 | . . . . . . . . . . . . . . . . . . . . . . . . . . . . . . . 2 . . . . . . . Utility 170 | 2 2 2 1 2 10 4 4 2 5 2 1 . . 8 5 2 2 2 2 2 2 7 4 1 1 9 1 . 2 1 7 8 . 7 10 18 18 14 Device 91 | 1 1 1 . 1 3 . 1 . 2 1 1 . . 6 3 . 1 1 . 2 1 4 2 . 1 4 1 . 1 . 4 7 . 4 6 11 9 11 Storage 8 | 1 1 . . 1 . . . . 1 . . . . . . . . . . . . 1 . . . 1 . . . . . . . . 1 . 1 . Processor 15 | . . . . . . 1 1 1 1 1 . . . 1 . . . . . . . . . . . 2 . . . . 1 . . . 2 2 1 1 Hackware 16 | . . . . . . 1 1 1 1 . . . . . 1 . 1 1 1 . 1 . 1 . . . . . . 1 1 . . . . 4 . . Protection 40 | . . 1 1 . 7 2 1 . . . . . . 1 1 2 . . 1 . . 2 1 1 . 2 . . 1 . 1 1 . 3 1 1 7 2 Artifact . | . . . . . . . . . . . . . . . . . . . . . . . . . . . . . . . . . . . . . . . Weapon 96 | 2 7 2 2 . 13 2 3 2 3 1 . . . 8 . 1 . 3 . 2 1 5 . . 2 8 1 . . . 6 5 . 1 1 1 11 3 Energy Gun 36 | 1 3 . 1 . 8 . . . 2 1 . . . 3 . 1 . 1 . . . . . . 2 1 . . . . 4 2 . 1 . . 4 1 Energy Cannon 18 | . 1 . . . 1 . . . . . . . . 4 . . . 1 . 1 1 2 . . . 1 . . . . 1 2 . . 1 1 1 . Ballistic Gun 16 | 1 . . 1 . 4 1 2 1 1 . . . . . . . . 1 . . . . . . . . 1 . . . . 1 . . . . 2 . Ballistic Cannon 15 | . . . . . . . . . . . . . . . . . . . . 1 . 1 . . . 6 . . . . 1 . . . . . 4 2 Launcher 6 | . 2 2 . . . 1 . 1 . . . . . . . . . . . . . . . . . . . . . . . . . . . . . . Special Weapon 3 | . 1 . . . . . . . . . . . . . . . . . . . . 2 . . . . . . . . . . . . . . . . Impact Weapon 1 | . . . . . . . 1 . . . . . . . . . . . . . . . . . . . . . . . . . . . . . . . Slashing Weapon . | . . . . . . . . . . . . . . . . . . . . . . . . . . . . . . . . . . . . . . . Piercing Weapon 1 | . . . . . . . . . . . . . . 1 . . . . . . . . . . . . . . . . . . . . . . . . Special Melee Weapon . | . . . . . . . . . . . . . . . . . . . . . . . . . . . . . . . . . . . . . . . Unidentified Prototypes 38 | . . . . 1 2 . 2 . 2 . . . . 1 . 3 . 1 . . . 6 1 . . 2 . . 2 . 2 . . . 7 1 3 2 Corrupted Parts 9 | . . . . . . . . . . . . . . . . 2 . 3 . . . . . . . . . . . . . . . . . . 4 . System Corruption 68 | . . . . . . . . . . . . . . . . 20 . 23 . . . . . . . . . . . . . . . . . . 25 . Parts Lost 83 | . 4 . 1 . 5 2 . 2 1 4 1 . 5 . . . . 1 . . 5 2 . . . 12 5 2 . . . 4 . . . 2 3 22 Power 13 | . 1 . 1 . . . . . . . . . 1 . . . . . . . 1 1 . . . 4 1 1 . . . . . . . . . 2 Propulsion 16 | . . . . . 2 . . 1 1 2 1 . 4 . . . . . . . . . . . . . . 1 . . . . . . . . . 4 Utility 39 | . 1 . . . 1 2 . . . 1 . . . . . . . 1 . . 3 1 . . . 6 3 . . . . 4 . . . 2 3 11 Weapon 15 | . 2 . . . 2 . . 1 . 1 . . . . . . . . . . 1 . . . . 2 1 . . . . . . . . . . 5 Highest Loss Streak 11 | . 2 . 1 . 5 1 . 1 1 4 1 . 3 . . . . 1 . . 4 1 . . . 2 4 2 . . . 1 . . . 1 1 11 To Critical Strikes 1 | . . . . . . . . . . . . . 1 . . . . . . . . . . . . . . . . . . . . . . . . . Average Backups 18 | 3 11 14 14 15 17 19 19 18 17 18 18 18 17 17 17 17 16 17 16 18 16 16 16 15 15 19 21 21 22 20 22 22 22 20 21 21 21 19 Power . | . . . . . 1 1 1 1 1 1 1 1 . . 1 1 1 1 . . 1 1 1 1 1 . . . . . . 1 1 . . . 1 1 Propulsion 2 | 1 3 4 4 4 3 4 3 3 2 2 2 2 . . 1 1 1 1 1 1 1 1 1 1 1 2 2 1 1 3 3 3 3 . 1 2 2 3 Utility 8 | . 4 5 5 6 7 7 7 7 6 6 6 7 7 9 8 7 7 9 9 10 8 6 6 5 5 8 9 8 8 8 9 8 8 10 11 12 11 11 Weapon 5 | . 3 4 4 4 4 5 6 6 6 6 6 6 6 5 5 5 5 4 4 4 3 6 7 7 6 7 7 7 8 6 6 6 7 7 5 5 5 3 Tool/Special . | . . . . . . . . . . . . . . . . . . . . . . . . . . . . . . . . . . . . . . . Unused Backups 52 | . 6 . 1 . 4 . . . 2 1 . . . 1 . 2 . 2 . . . 5 . . 1 1 2 . . . 3 2 . 1 5 3 7 3 Power 8 | . . . . . 2 . . . 2 1 . . . . . 1 . . . . . . . . . . . . . . . . . . . . 2 . Propulsion 7 | . 2 . . . . . . . . . . . . . . . . . . . . . . . . . 1 . . . . 1 . 1 . 1 1 . Utility 28 | . 2 . 1 . 2 . . . . . . . . 1 . . . 2 . . . 3 . . . 1 1 . . . 3 1 . . 3 2 3 3 Weapon 7 | . 2 . . . . . . . . . . . . . . 1 . . . . . 1 . . 1 . . . . . . . . . 1 . 1 . Tool/Special 2 | . . . . . . . . . . . . . . . . . . . . . . 1 . . . . . . . . . . . . 1 . . . Average Slot Usage (%) 87 | . 97 100 99 85 95 87 99 99 99 99 99 100 95 91 100 92 86 85 81 81 82 81 81 83 87 81 71 71 67 75 88 88 85 85 80 80 77 77 Engine 2 | . 13 14 13 . 7 9 4 . 6 7 7 7 4 . . . . . . . . . . . . . . . . . . . . . . . . . Core 2 | . . . . . . . 4 9 . . . . 2 9 13 5 . . . 2 5 4 5 5 3 3 . 4 5 5 3 . . . . . . . Reactor 5 | . . . . . . . . . . . . . . . . 6 13 13 17 14 9 8 10 10 11 6 7 3 . . 5 9 9 14 13 12 9 7 Treads 17 | . 28 28 28 28 26 27 27 26 29 30 29 30 25 18 26 19 13 13 11 11 11 11 11 10 10 10 10 9 7 . . 3 14 14 12 12 11 12 Leg 1 | . . . . . . . . . . . . . . 2 . . . . . . . . . . . . . . 3 17 21 16 . . . . . . Device 13 | . 12 13 13 . 12 3 . . . 3 6 7 7 12 9 12 15 11 4 4 10 17 13 20 21 16 20 26 27 30 19 22 23 19 15 10 20 17 Storage 6 | . 14 14 14 14 9 9 9 9 7 7 7 7 7 6 6 6 6 6 5 5 5 8 5 5 5 5 5 5 5 5 4 4 4 4 4 4 4 4 Processor 9 | . . . . . . . 17 9 7 15 15 15 15 13 13 13 13 13 11 11 9 5 5 5 5 6 8 5 5 5 8 9 9 9 12 16 13 17 Hackware 4 | . . . . . . 1 6 8 13 7 7 7 7 6 7 . 1 7 5 5 3 . 1 5 5 5 5 5 5 5 10 8 4 4 4 9 1 . Protection 5 | . . . . 14 12 10 2 9 7 2 . . . . 1 6 2 . 4 5 4 6 11 10 10 11 2 . 2 . 1 . 4 4 4 3 6 7 Energy Gun 5 | . 12 13 1 14 8 . . . 2 18 23 17 22 9 2 . . 4 5 . 3 . . . 4 . . . . . 4 9 . . . . 4 8 Energy Cannon 4 | . 5 . . . . . . . . . . . . 9 17 18 13 13 5 6 4 12 . . 8 . 1 . . . 2 2 14 13 13 11 2 . Ballistic Gun 5 | . 7 . . 12 16 23 26 26 18 3 . . . . . . . . 5 5 2 . . . . . 1 . . . . . . . . . 3 2 Ballistic Cannon 1 | . . . . . . . . . . . . . . . . . . . . . 4 . 4 5 . 12 6 5 . . . . . . . . . 1 Launcher 1 | . 2 14 25 1 . 3 . . . . . . . . . . . . . 2 . . . . . . 1 2 . . . . . . . . . . Peak Build Rating 252 | 7 8 10 10 15 37 38 40 40 45 51 53 54 53 67 70 110 110 107 126 125 125 140 144 156 156 157 147 139 117 124 163 161 153 165 202 211 252 249 Average Rating 114 | 5 7 9 9 9 25 35 39 38 42 48 52 53 50 61 68 87 103 105 123 118 113 124 138 154 152 145 132 127 111 112 140 152 153 161 189 204 232 234 On Entrance 94 | . 7 8 9 9 10 37 38 40 39 44 51 53 53 48 67 70 110 102 105 125 116 88 136 136 153 153 143 127 115 109 114 151 153 153 165 200 206 244 Naked Turns . | . . . . . . . . . . . . . . . . . . . . . . . . . . . . . . . . . . . . . . . Heaviest Build 221 | 14 32 30 30 47 78 80 77 71 73 73 65 64 64 91 91 114 118 112 143 143 141 159 168 161 167 191 178 155 120 146 166 177 177 193 212 212 221 213 Greatest Support 250 | 40 40 40 40 40 62 62 62 62 82 90 90 90 90 94 114 160 160 160 160 160 160 160 160 160 160 160 155 160 160 115 145 150 150 187 240 240 250 250 Greatest Overweight (x) 5 | . . . . 1 1 1 1 1 1 . . . 1 3 . . . . . . 1 1 1 1 1 1 1 . 3 1 5 2 1 1 . 1 1 . Average Overweight (x) . | . . . . . . 1 . 1 . . . . . . . . . . . . . . . . . . . . . . . . 1 1 . . . . Largest Inventory Capacity 25 | 8 15 15 15 20 20 20 20 20 20 20 20 20 20 20 20 20 20 20 20 20 20 20 20 20 20 25 25 25 25 25 25 25 25 25 25 25 25 25 Average Capacity 21 | 7 14 15 15 16 20 20 20 20 20 20 20 20 20 20 20 20 20 20 20 20 20 20 20 20 20 23 25 25 25 25 25 25 25 25 25 25 25 25 Most Carried 25 | 7 15 15 15 16 20 20 20 20 20 20 20 20 20 20 20 20 20 20 20 20 20 20 20 19 20 25 25 25 25 25 25 25 24 25 25 25 25 25 Average Carried 20 | 3 11 14 14 15 18 19 19 19 18 19 19 19 18 19 19 19 19 19 18 19 19 19 19 18 19 22 24 24 24 24 24 24 24 23 24 24 24 22 Final Capacity 25 | 8 15 15 15 20 20 20 20 20 20 20 20 20 20 20 20 20 20 20 20 20 20 20 20 20 20 25 25 25 25 25 25 25 25 25 25 25 25 25 Final Carried 25 | 6 15 15 15 16 20 20 20 20 20 19 19 20 18 20 20 20 20 20 20 20 19 20 20 19 20 25 25 23 25 25 25 24 24 25 25 25 24 7 Class Distribution -------------------- 30% | Scavenger-Tank 13% | Scavenger-Skirmisher 12% | Mutant 10% | Hacker-Tank 7% | Hacker-Mutant 5% | Scavenger-Gunner 5% | Scavenger-Mutant 4% | Skirmisher 3% | Gunner 3% | Hacker-Skirmisher Dominant Class ---------------- Mutant | -10/Materials Mutant | -10/Mines Mutant | -10/Exiles Mutant | -9/Mines Scavenger-Tank | -8/Materials Scavenger-Skirmisher | -8/Garrison Scavenger-Skirmisher | -8/Materials Scavenger-Skirmisher | -8/Garrison Scavenger-Skirmisher | -7/Factory Gunner | -7/Lower Caves Gunner | -7/Lower Caves Mutant | -7/Zion Gunner | -6/Proximity Caves Skirmisher | -6/Factory Commander-Skirmisher | -6/Extension Commander-Tank | -6/Cetus Scavenger-Mutant | -6/Archives Scavenger-Tank | -6/Hub_04(d) Scavenger-Tank | -5/Factory Scavenger-Tank | -5/Upper Caves Scavenger-Tank | -5/Upper Caves Scavenger-Tank | -5/Warlord Scavenger-Tank | -4/Proximity Caves Scavenger-Tank | -4/Factory Scavenger-Tank | -4/Waste Hacker-Tank | -4/Factory Hacker-Mutant | -4/Upper Caves Hacker-Mutant | -4/Upper Caves Hacker-Mutant | -4/Zhirov Hacker-Mutant | -3/Proximity Caves Hacker-Mutant | -3/Research Hacker-Tank | -3/Garrison Scavenger-Tank | -3/Research Hacker-Tank | -3/DSF Hacker-Tank | -2/Research Hacker-Skirmisher | -1/Access Scavenger-Tank | -1/Command Scavenger-Tank | -1/Access_0 Resources | -11 -10 -10 -10 -9 -8 -8 -8 -8 -7 -7 -7 -7 -6 -6 -6 -6 -6 -6 -5 -5 -5 -5 -4 -4 -4 -4 -4 -4 -4 -3 -3 -3 -3 -3 -2 -1 -1 -1 ----------- Run | Yrd Mat Min Exi Min Mat Gar Mat Gar Fac Low Low Zio Pro Fac Ext Cet Arc Hub Fac Upp Upp War Pro Fac Was Fac Upp Upp Zhi Pro Res Gar Res DSF Res Acc Com Ac0 Matter Collected 20471 | 305 346 110 85 16 1304 483 815 1292 616 194 80 10 58 196 340 165 154 157 . 282 429 725 941 3 595 3329 724 151 214 242 147 682 . 200 270 908 1664 2239 Remotely 1838 | . . . . . . . . . . . . . . . . . . . . . . . . . . 376 379 . . . . . . . . . . 1083 Salvage Created 30062 | 145 709 65 45 50 2164 522 1403 1163 973 586 192 . 606 440 1101 315 289 212 . 180 544 484 321 10 427 3384 487 110 276 459 357 1689 . 880 440 2014 5376 1644 Parts 1330 | 13 42 8 2 14 114 43 76 63 50 30 10 . 17 15 52 7 22 5 . 16 14 16 16 1 2 134 16 8 2 11 13 68 . 31 15 108 179 97 Haulers Intercepted 21 | . 2 . . . 3 . 3 . 1 . . . . 1 . . . . . . . . . . . 3 . . . . 1 . . . 3 4 . . Recyclers Shooed 13 | . . . . . . . 1 . . . . . . 4 . . . . . . . . . . . 7 . . . . 1 . . . . . . . Parts Field Recycled . | . . . . . . . . . . . . . . . . . . . . . . . . . . . . . . . . . . . . . . . Retrieved Matter . | . . . . . . . . . . . . . . . . . . . . . . . . . . . . . . . . . . . . . . . Parts Self-Destructed 105 | . . . . . . . . . . 17 9 . 21 . . . . . . 11 5 . 13 . . . 12 8 . 9 . . . . . . . . Prevented 11 | . . . . . . . . . . . . . . . . . . . . . 7 . 1 . . . 3 . . . . . . . . . . . Kills | -11 -10 -10 -10 -9 -8 -8 -8 -8 -7 -7 -7 -7 -6 -6 -6 -6 -6 -6 -5 -5 -5 -5 -4 -4 -4 -4 -4 -4 -4 -3 -3 -3 -3 -3 -2 -1 -1 -1 ------- Run | Yrd Mat Min Exi Min Mat Gar Mat Gar Fac Low Low Zio Pro Fac Ext Cet Arc Hub Fac Upp Upp War Pro Fac Was Fac Upp Upp Zhi Pro Res Gar Res DSF Res Acc Com Ac0 Combat Hostiles Destroyed 415 | . 18 6 1 3 31 18 17 24 8 12 6 . 15 5 16 4 1 3 . 9 13 16 15 . . 36 15 7 . 5 3 27 . 10 1 23 28 19 Melee 2 | . 1 . . . . . . . . . . . . . . . . . . . . . . . . . . . . 1 . . . . . . . . Guns 138 | . 3 3 1 . 30 7 17 16 6 12 6 . 11 2 . . . . . . 3 . . . . . . . . . 1 11 . . . . . 9 Cannons 164 | . 10 . . . . . . . . . . . . 2 14 2 1 3 . 2 2 1 8 . . 34 10 . . 1 2 7 . 9 1 22 23 10 AOE 90 | . 3 3 . 3 . 11 . 8 2 . . . 2 . . . . . . 7 7 12 7 . . 2 4 7 . 3 . 9 . . . . . . Classes Destroyed 26 | 2 5 . 1 1 6 2 . . 1 2 1 . . . 1 . . . . . . 1 2 . . . . . . . . . . 1 . . . . Worker 20 | . 2 . . . 6 . . . 1 . . . . . . . . . . . . . . . . 6 . . . . . . . . . 1 4 . Builder 11 | . . . . . 2 . 2 . . . . . . . 1 . . 1 . . . . . . . 5 . . . . . . . . . . . . Tunneler 11 | 4 1 . . 1 1 . . . 2 . . . . . . . . . . . . . . . . . . . . . 1 . . . . 1 . . Hauler 21 | . 2 . . . 3 . 3 . 1 . . . . 1 . . . . . . . . . . . 3 . . . . 1 . . . 3 4 . . Recycler 25 | 1 . . . . 2 . 3 . 5 . . . . . 1 . . . . . . . . . . 9 . . . . . . . . . . 4 . Minesweeper 3 | . . . . . . . . . . . 1 . . . . . . . . . . . 1 . . . 1 . . . . . . . . . . . Mechanic 3 | . . . . . . . . . 1 . . . . . . . . . . . . . 1 . . . . . . . . . . . 1 . . . Operator 19 | . 1 . . . . . 3 . 1 . . . . . 1 . 6 1 . . . . . . . . . . . . 1 . . . 3 . 2 . Drone 2 | . . . . . . . . . . . . . . . . . . . . . . . 1 . . . . . . . . . . . . . . 1 Watcher 18 | . . . . . 4 1 5 . 1 . . . . 2 1 1 . . . . . . . 1 . 1 . . . . . . . . . 1 . . Swarmer 91 | . 3 6 . 3 . 8 3 2 3 7 6 . 6 . 3 . . . . 8 1 1 5 . . 2 7 3 . . . 10 . . 1 3 . . Cutter 8 | . . . . . . 3 . 2 . . . . . . . . . . . . . . . . . . . . . . . . . 3 . . . . Saboteur 1 | . . . . . . . . . . . . . . . . . . . . . . . 1 . . . . . . . . . . . . . . . Grunt 133 | . 15 . . . 18 1 8 10 1 . . . 5 1 5 . . 2 . . 3 8 8 . . 16 . 4 . 4 1 15 . . . 2 6 . Brawler 12 | . . . . . 3 . 1 . . . . . . . . . . . . . 3 1 . . . . 2 . . . . . . . . 1 1 . Duelist 11 | . . . . . 2 2 1 . . . . . . . . . . . . . 3 . . . . . 3 . . . . . . . . . . . Protector 2 | . . . . . . . . . . . . . . . . . . . . . . 2 . . . . . . . . . . . . . . . . Sentry 43 | . . . . . 6 2 4 6 3 . . . . 2 7 . 1 1 . . 1 . . . . 3 1 . . 1 1 1 . . . . 3 . Specialist 4 | . . . . . 2 . . . . . . . . . . . . . . . . . . . . . . . . . . . . 2 . . . . Hunter 22 | . . . . . . 1 . 2 1 . . . 2 . . . . . . . 1 1 . . . 4 . . . . 1 1 . 4 . 2 2 . Programmer 48 | . . . 1 . . 1 . 2 . . . . 2 2 . . . . . . . 2 . . . 11 2 . . . . . . . . 15 10 . Heavy 1 | . . . . . . . . . . . . . . . . . . . . . . . . . . . . . . . . . . 1 . . . . Behemoth 3 | . . . . . . . . . . . . . . . 1 . . . . . 1 . . . . . . . . . . 1 . . . . . . Cetus Guard 4 | . . . . . . . . . . . . . . . . 4 . . . . . . . . . . . . . . . . . . . . . . M Guard 2 | . . . . . . . . . . . . . . . . . . . . . . . . . . . . . . . . . . . . . 2 . Enhanced Grunt 10 | . . . . . . . . . . . . . . . . . . . . . . . . . . . . . . . . . . . . . . 10 Enhanced Sentry 1 | . . . . . . . . . . . . . . . . . . . . . . . . . . . . . . . . . . . . . . 1 Enhanced Hunter 6 | . . . . . . . . . . . . . . . . . . . . . . . . . . . . . . . . . . . . . . 6 Combat Programmer 2 | . . . . . . . . . . . . . . . . . . . . . . . . . . . . . . . . . . . . . 2 . Zionite 1 | . . . . 1 . . . . . . . . . . . . . . . . . . . . . . . . . . . . . . . . . . Decomposer 1 | . . . . . . . . . . . . . . . . . . . . 1 . . . . . . . . . . . . . . . . . . Samaritan 1 | . . . . . . . . . . 1 . . . . . . . . . . . . . . . . . . . . . . . . . . . . Thug 4 | . . . . . . . . . 1 2 . . . . . . . . . . . 1 . . . . . . . . . . . . . . . . Butcher 2 | . . . . . . . . . . 2 . . . . . . . . . . . . . . . . . . . . . . . . . . . . Mutant 2 | . . . . . . . . . . 1 . . . . . . . . . 1 . . . . . . . . . . . . . . . . . . Best Kill Streak 11 | 1 3 3 1 3 7 7 8 6 3 4 4 . 4 1 6 3 1 2 . 4 8 8 10 1 . 11 4 7 . 4 2 4 . 5 1 5 4 6 Combat Bots Only 9 | . 3 3 1 3 7 7 6 6 3 4 3 . 4 1 5 2 1 1 . 4 8 8 9 . . 8 4 7 . 4 1 4 . 5 1 2 3 6 Max Kills in Single Turn 5 | 1 1 2 1 4 2 4 2 2 2 2 1 . 2 1 1 2 1 1 . 3 2 3 5 1 . 4 2 2 . 1 1 3 . 1 1 1 2 1 Gunslinging 1 | . . 1 . . . . 1 . . 1 . . . . . . . . . . . . . . . . . . . . . 1 . . . . . . Exploded 4 | . 1 1 . 3 . 4 . 2 2 . . . 2 . . . . . . 3 2 3 4 . . 2 2 2 . 1 . 2 . . . . . . Melee 1 | . 1 . . . . . . . . . . . . . . . . . . . . . . . . . . . . 1 . . . . . . . . Uniques/NPCs Destroyed 4 | . . . . . . . . . . . . . . . . . . . . . . . . . . . . . . . . . . . . . 2 2 MAIN.C Shell (-1/Command) MAIN.C (-1/Command) A8 (-1/Access_0) A6 (-1/Access_0) Combat | -11 -10 -10 -10 -9 -8 -8 -8 -8 -7 -7 -7 -7 -6 -6 -6 -6 -6 -6 -5 -5 -5 -5 -4 -4 -4 -4 -4 -4 -4 -3 -3 -3 -3 -3 -2 -1 -1 -1 -------- Run | Yrd Mat Min Exi Min Mat Gar Mat Gar Fac Low Low Zio Pro Fac Ext Cet Arc Hub Fac Upp Upp War Pro Fac Was Fac Upp Upp Zhi Pro Res Gar Res DSF Res Acc Com Ac0 Hostile Shots Fired 2923 | . 81 41 16 2 123 38 30 50 81 40 19 . 74 77 87 18 4 88 12 15 102 44 49 . . 323 73 40 . 38 . 141 . 120 1 129 150 817 Missed 867 | . 16 15 1 . 32 12 7 15 35 8 6 . 26 35 25 1 1 28 3 3 16 26 19 . . 82 17 19 . 10 . 46 . 64 . 24 29 246 Hits 2056 | . 65 26 15 2 91 26 23 35 46 32 13 . 48 42 62 17 3 60 9 12 86 18 30 . . 241 56 21 . 28 . 95 . 56 1 105 121 571 Melee 82 | . . . . . 6 4 . 1 . 4 . . . . . . . . . . 27 . . . . . 15 . . . . . . 3 . . . 22 Projectile 1974 | . 65 26 15 2 85 22 23 34 46 28 13 . 48 42 62 17 3 60 9 12 59 18 30 . . 241 41 21 . 28 . 95 . 53 1 105 121 549 AOE 9 | . . . . . . 1 . 2 . . . . . . . . . . . . . . . . . 1 . . . . . . . . . . 5 . Critical Strikes 129 | . . . 1 . 4 3 1 1 1 . . . 1 . . 6 . 2 1 . 11 2 2 . . 15 5 3 . 1 . 1 . 2 . 5 10 51 Actively Blocked 34 | . . . . . . . . . . . . . . . . . . . . . . . . . . . . . . . . . . . . . 4 30 Part Disruptions 15 | . . . 1 . . . . . . . . . . . . . . . . . . . . . . 2 . . . . . . . . . 2 6 4 Damage Taken 36612 | . 758 206 228 28 1476 522 347 907 500 594 188 . 852 315 405 460 49 922 168 111 2160 871 373 . . 3487 1426 322 . 463 17 830 . 869 47 1668 3965 11078 Core 3295 | . 126 9 30 . 101 61 32 147 56 31 14 . 60 30 23 29 . 48 21 . 270 43 11 . . 235 171 21 . 65 . 67 . 55 . 90 55 1394 Absorbed by Shields 11779 | . . . . . . . . . . . . . . 114 260 119 14 47 10 59 405 51 189 . . 1400 . . . . . 900 . 398 48 802 314 6649 Reduced by Siege Mode 1611 | . . . . . . . . . . . . . . . . 41 . . . 1 82 . 18 . . 30 120 . . . . 4 . 76 . 99 542 598 Ignored by Resistances 1838 | . . . . . . . 6 18 97 44 . . . . 19 . . . . . . . 9 . . 168 13 94 . 158 8 474 . . . . 7 723 Regen/Repaired (Parts) 1067 | . . . . . 51 . . . . . . . . 122 . . . . . . . 878 . . . . . . . . . . . . 16 . . . Core Remaining (%) 71 | 100 . . . 34 . . . 38 . . . . 77 . . . . 84 . . . . 65 . . . . . . 57 . . . 90 100 . . . Volleys Fired 1710 | 13 74 18 7 3 118 33 50 105 35 22 9 . 21 29 36 16 5 26 14 16 44 50 30 11 4 116 58 14 . 7 24 92 . 32 28 114 248 188 Largest 3 | 2 2 2 2 2 3 3 3 3 3 3 3 . 3 3 3 3 3 3 1 3 3 2 1 1 3 3 2 2 . 1 2 3 . 3 3 3 3 3 Hottest 345 | 60 100 100 100 70 171 84 84 81 81 68 60 . 70 250 250 250 250 260 90 215 210 240 76 90 252 153 95 86 . 76 199 345 . 345 345 345 345 270 Shots Fired 3675 | 25 139 36 12 5 327 79 148 225 101 66 27 . 63 80 105 44 14 55 14 23 88 59 31 11 8 281 59 17 . 8 31 180 . 64 57 257 490 446 Gun 1983 | 25 84 28 12 4 324 74 148 211 99 66 27 . 62 43 8 1 . 13 . 5 29 1 . . 4 . . . . . 8 112 . . . . 238 357 Cannon 1593 | . 44 . . . 3 . . . . . . . . 37 96 43 14 42 14 12 51 51 29 11 4 281 57 4 . 1 23 57 . 64 57 257 252 89 Launcher 87 | . 8 8 . 1 . 5 . 14 2 . . . 1 . 1 . . . . 6 8 . . . . . 2 13 . 7 . 11 . . . . . . Special 12 | . 3 . . . . . . . . . . . . . . . . . . . . 7 2 . . . . . . . . . . . . . . . Kinetic 1451 | 13 46 . 1 2 207 74 148 211 94 14 . . . . . . . 3 . 5 28 . 29 9 . 281 44 4 . 1 . 23 . . . . 69 145 Thermal 2010 | 12 85 28 11 2 120 . . . 5 52 27 . 62 80 104 44 14 52 14 12 49 20 . 2 8 . . . . . 31 146 . 64 57 257 368 284 Explosive 96 | . 8 8 . 1 . 5 . 14 2 . . . 1 . 1 . . . . 6 8 7 2 . . . 2 13 . 7 . 11 . . . . . . Electromagnetic 80 | . . . . . . . . . . . . . . . . . . . . . 3 32 . . . . 13 . . . . . . . . . 32 . Entropic 38 | . . . . . . . . . . . . . . . . . . . . . . . . . . . . . . . . . . . . . 21 17 Robot Hit Streak 48 | 8 8 6 4 5 15 9 5 47 11 14 4 . 13 29 16 7 2 5 . 8 12 7 6 4 6 11 21 3 . 2 4 29 . 18 8 12 48 43 Robot Miss Streak 8 | 2 4 8 2 2 4 2 4 3 3 2 4 . 3 2 3 3 2 5 . . 3 2 1 . 1 6 4 4 . 6 1 2 . 3 3 2 1 4 Penetration Max 2 | . . . . . 1 1 1 1 . . . . . . . . . . . . 1 . . . . 2 . . . . . . . . . . . 1 Secondary Targets 28 | . . 1 . . 4 2 4 2 . 4 2 . 3 . . . . . . . . . . . . . . . . . . 1 . . . . . 5 Max Gunslinging Chain 1 | . . 1 . . 1 1 1 1 . 1 1 . 1 . . . . . . . . . . . . . . . . . . 1 . . . . . 1 Shots Hit Robots 2229 | 17 76 9 8 3 197 39 68 132 57 44 14 . 45 58 71 41 15 25 . 6 52 35 21 3 6 153 51 7 6 9 13 96 . 42 28 107 299 376 Core Hits 1305 | 6 33 8 2 6 87 28 49 76 30 25 8 . 26 19 31 18 13 10 . 15 36 33 19 1 3 92 62 24 2 15 8 60 . 17 15 40 154 234 Critical Kills 72 | . 1 . . . 3 1 . 1 . 1 . . . . 2 . . . . . . . . . . 45 . . . . . . . . . 1 4 13 Critical Parts Destroyed 88 | . . . . . 2 3 . 2 1 . . . . . . . . 1 . . . . . . . 58 . 1 . . . . . . . . 4 16 Critical Strikes 220 | . 2 2 . . 13 4 . 3 1 5 . . 5 3 3 1 1 1 . . . 1 4 . 2 104 1 1 . 1 . 4 . . . 1 11 46 Burn 30 | . 1 2 . . 8 . . . . 4 . . 5 3 1 . . . . . . . . . 2 . . . . . . 4 . . . . . . Meltdown 7 | . 1 . . . . . . . . . . . . . 2 . . . . . . . . . . . . . . . . . . . . 1 3 . Destroy 171 | . . . . . 5 4 . 3 . 1 . . . . . . . 1 . . . . . . . 103 . 1 . . . . . . . . 8 45 Blast 5 | . . . . . . . . . . . . . . . . . . . . . . . 4 . . 1 . . . . . . . . . . . . Corrupt 1 | . . . . . . . . . . . . . . . . . . . . . . . . . . . 1 . . . . . . . . . . . Smash 1 | . . . . . . . . . 1 . . . . . . . . . . . . . . . . . . . . . . . . . . . . . Sever 1 | . . . . . . . . . . . . . . . . . . . . . . 1 . . . . . . . . . . . . . . . . Impale 3 | . . . . . . . . . . . . . . . . 1 1 . . . . . . . . . . . . 1 . . . . . . . . Sunder 1 | . . . . . . . . . . . . . . . . . . . . . . . . . . . . . . . . . . . . . . 1 Melee Attacks 81 | . . . . . . . 4 . 8 . . 1 . 13 . 10 9 . . . . . . . . 14 . . 10 7 5 . . . . . . . Impact 24 | . . . . . . . 4 . 8 . . 1 . 11 . . . . . . . . . . . . . . . . . . . . . . . . Slashing . | . . . . . . . . . . . . . . . . . . . . . . . . . . . . . . . . . . . . . . . Piercing 57 | . . . . . . . . . . . . . . 2 . 10 9 . . . . . . . . 14 . . 10 7 5 . . . . . . . Sneak Attacks 23 | . . . . . . . . . 1 . . . . . . 10 8 . . . . . . . . 3 . . . . 1 . . . . . . . Combat Hostiles . | . . . . . . . . . . . . . . . . . . . . . . . . . . . . . . . . . . . . . . . Follow-up Attacks . | . . . . . . . . . . . . . . . . . . . . . . . . . . . . . . . . . . . . . . . Damage Inflicted 84086 | 175 1550 261 125 140 3556 1455 1886 3218 1413 910 267 . 1067 1435 1926 1391 828 870 . 867 2802 6081 2906 223 163 4696 1519 1074 419 1154 590 4365 . 1663 1205 5055 12622 14209 Guns 31104 | 173 554 138 125 26 3556 904 1859 2167 1062 910 267 . 953 699 123 . . 245 . 55 679 . . . 67 . . . . . 185 2434 . . . . 3113 10810 Cannons 35325 | . 578 . . . . . . . . . . . . 736 1769 894 256 603 . 193 916 1120 1276 223 96 3222 1269 23 . 86 294 973 . 1663 1205 5026 9505 3399 Explosions 14741 | . 413 123 . 114 . 551 . 1051 184 . . . 114 . . . . . . 619 1207 4668 1523 . . 1242 250 1051 . 674 . 957 . . . . . . Melee 2351 | . . . . . . . . . 161 . . . . . . 497 572 . . . . . . . . 197 . . 419 394 111 . . . . . . . Ramming 165 | 2 5 . . . . . 27 . 6 . . . . . 34 . . 22 . . . . . . . 35 . . . . . 1 . . . 29 4 . Kinetic 21986 | 92 304 . 17 14 2303 904 1859 2167 987 192 . . . . . . . 82 . 55 427 . 1276 223 . 3222 1034 23 . 86 . 392 . . . . 2219 4108 Thermal 41126 | 81 828 138 108 12 1253 . . . 75 718 267 . 953 1435 1892 894 256 766 . 193 1058 603 . . 163 1242 41 . . . 479 3015 . 1663 1205 5026 8322 8440 Explosive 13092 | . 413 123 . 114 . 551 . 1051 184 . . . 114 . . . . . . 619 1207 4302 1523 . . . 209 1051 . 674 . 957 . . . . . . Electromagnetic 1339 | . . . . . . . . . . . . . . . . . . . . . 110 883 . . . . 235 . . . . . . . . . 111 . Impact 161 | . . . . . . . . . 161 . . . . . . . . . . . . . . . . . . . . . . . . . . . . . Slashing 400 | . . . . . . . . . . . . . . . . . . . . . . 293 107 . . . . . . . . . . . . . . . Piercing 2190 | . . . . . . . . . . . . . . . . 497 572 . . . . . . . . 197 . . 419 394 111 . . . . . . . Entropic 3627 | . . . . . . . . . . . . . . . . . . . . . . . . . . . . . . . . . . . . . 1966 1661 Highest Corruption 41 | . . . 1 1 . 5 9 14 . . . . 1 3 3 21 21 41 1 1 10 10 2 . . 24 28 28 28 28 . 1 1 3 . 13 22 6 Average Corruption 10 | . . . 1 1 . 2 8 11 . . . . 1 2 2 17 17 15 1 1 9 4 2 . . 17 26 28 28 28 . 1 1 2 . 6 14 4 Corruption Purged 65 | . . . . . . . . . . . . . . . 3 . 7 . . 1 . . . . . . . . . . . . . . . 7 47 . Corruption Blocked . | . . . . . . . . . . . . . . . . . . . . . . . . . . . . . . . . . . . . . . . Effects 727 | . . . 2 4 . 16 39 79 . . . . 3 18 6 28 24 44 . 2 7 7 17 . . 96 47 24 21 26 . 1 . 5 . 77 110 24 Message Errors 188 | . . . . . . 4 11 22 . . . . 1 2 2 10 8 13 . 1 1 2 4 . . 22 12 7 3 9 . . . 2 . 20 27 5 Matter Fused 182 | . . . . 1 . 5 8 22 . . . . 1 5 2 8 7 6 . . 2 3 7 . . 21 12 8 6 4 . . . . . 25 24 5 Heat Flow Errors 102 | . . . 1 1 . 3 6 7 . . . . . 3 . 2 4 12 . . 1 1 2 . . 15 6 2 6 3 . 1 . . . 8 14 4 Energy Discharges 61 | . . . . 2 . . 3 6 . . . . 1 3 . 1 2 2 . . 1 . . . . 8 3 3 1 2 . . . 2 . 6 13 2 Parts Rejected 10 | . . . 1 . . . . . . . . . . . . . . . . . . . . . . 3 2 1 . . . . . . . 1 . 2 Parts Fused 7 | . . . . . . . 1 . . . . . . 1 . . . . . . . . . . . 1 2 . 1 . . . . . . 1 . . Data Loss (minor) 64 | . . . . . . 3 5 9 . . . . . 2 1 1 1 5 . 1 . 1 2 . . 8 5 1 1 3 . . . 1 . 3 10 1 Data Loss (major) 40 | . . . . . . 1 1 4 . . . . . 1 . 2 1 1 . . 1 . 1 . . 7 . 1 3 1 . . . . . 6 7 2 Misfires 22 | . . . . . . . 1 6 . . . . . . 1 1 1 2 . . . . 1 . . 1 . 1 . 1 . . . . . 4 2 . Alerts 12 | . . . . . . . . 1 . . . . . 1 . . . . . . . . . . . 1 1 . . 2 . . . . . 2 4 . Misdirections 10 | . . . . . . . . . . . . . . . . . . . . . . . . . . 7 . . . 1 . . . . . . 2 . Weapon Failures 29 | . . . . . . . 3 2 . . . . . . . 3 . 3 . . 1 . . . . 2 4 . . . . . . . . 1 7 3 Overload Shots 2 | . . . . . . . . . . . . . . . . 1 . . . . . 1 . . . . . . . . . . . . . . . . Overflow Damage 2287 | . 15 . . . . . 4 72 104 . . . . 35 33 4 151 . . 17 48 148 275 31 18 240 36 21 130 210 76 41 . 4 35 331 149 59 Projectiles 1087 | . . . . . . . . . . . . . . 35 19 . . . . . 1 32 252 31 18 5 36 . . . 41 39 . 4 35 331 149 59 Explosions 516 | . 15 . . . . . . 72 . . . . . . . . . . . 17 47 116 23 . . 174 . 21 . 29 . 2 . . . . . . Melee 684 | . . . . . . . 4 . 104 . . . . . 14 4 151 . . . . . . . . 61 . . 130 181 35 . . . . . . . Knockbacks 88 | . . . . . . . . . 3 . . . . . 1 . . . . . 1 . 3 1 . 40 26 . . . . 5 . . . . . 8 Impact 4 | . . . . . . . . . 3 . . . . . 1 . . . . . . . . . . . . . . . . . . . . . . . Kinetic 80 | . . . . . . . . . . . . . . . . . . . . . 1 . 3 1 . 36 26 . . . . 5 . . . . . 8 Secondary 4 | . . . . . . . . . . . . . . . . . . . . . . . . . . 4 . . . . . . . . . . . . Self-Inflicted Damage 673 | . 5 . . 9 . . . 96 66 . . . . . . . . . . 40 243 . . . . . 20 42 . 40 . 112 . . . . . . Shots 25 | . 1 . . 1 . . . 2 2 . . . . . . . . . . 1 7 . . . . . 1 1 . 3 . 6 . . . . . . Rammed 14 | 2 2 . . . 1 . 3 . 1 . . . . . . . . 2 . . . . . . . 1 . . . . . . . . . 1 1 . Targets Rammed 20 | 2 4 . . . 1 . 3 . 1 . . . . . 1 . . 2 . . . . . . . 3 . . . . . 1 . . . 1 1 . Kicked 1 | . . . . . . . . . . . . . . . . . . . . . . . . . . . . . . . . 1 . . . . . . Crushed 5 | . 2 . . . . . . . . . . . . . 1 . . . . . . . . . . 2 . . . . . . . . . . . . Highest Temperature 525 | . 234 369 208 120 181 252 256 321 104 4 . . 13 315 380 207 437 525 234 351 373 245 360 64 200 470 318 233 240 234 72 357 . 341 200 230 332 358 Average Temperature 92 | . 67 165 70 35 47 64 45 90 38 3 . . 4 94 129 116 156 133 36 110 175 69 66 21 95 118 107 91 100 114 27 86 . 132 54 44 109 105 Received Heat Transfer 4025 | . 384 . . . 792 36 162 198 69 63 . . 119 78 101 18 7 257 . . 318 88 91 . . 502 9 85 . 165 . 143 . . . 27 281 32 Effects 39 | . . 3 . . . . . 2 . . . . . . 4 . 2 5 . 6 6 . 5 . . 2 . . 1 . . 1 . . . . 2 . Shutdowns 8 | . . 1 . . . . . . . . . . . . . . 1 1 . 1 2 . 1 . . . . . . . . 1 . . . . . . Energy Bleed 8 | . . . . . . . . . . . . . . . 2 . . 1 . 2 . . . . . 2 . . 1 . . . . . . . . . Interference 19 | . . 2 . . . . . 2 . . . . . . 2 . . 2 . 3 4 . 2 . . . . . . . . . . . . . 2 . Short Circuit 1 | . . . . . . . . . . . . . . . . . . . . . . . 1 . . . . . . . . . . . . . . . Damage (minor) 2 | . . . . . . . . . . . . . . . . . . 1 . . . . 1 . . . . . . . . . . . . . . . Damage (major) 1 | . . . . . . . . . . . . . . . . . 1 . . . . . . . . . . . . . . . . . . . . . Siege Activations 42 | . . . . . . . . . . . . . . . . 1 . . . 1 2 2 1 . . 5 2 . . . . 1 . 2 . 9 8 8 Total Turns 874 | . . . . . . . . . . . . . . . . 17 . . . 20 59 67 35 . . 93 72 . . . . 7 . 88 . 138 129 149 Longest Duration 71 | . . . . . . . . . . . . . . . . 17 . . . 20 50 45 35 . . 36 59 . . . . 7 . 71 . 51 30 57 Martial Activations . | . . . . . . . . . . . . . . . . . . . . . . . . . . . . . . . . . . . . . . . Shielding Activations . | . . . . . . . . . . . . . . . . . . . . . . . . . . . . . . . . . . . . . . . Robots Disrupted . | . . . . . . . . . . . . . . . . . . . . . . . . . . . . . . . . . . . . . . . Combat Hostiles . | . . . . . . . . . . . . . . . . . . . . . . . . . . . . . . . . . . . . . . . Robots Corrupted 10 | . . . . . . . 1 . 3 . . . . . . . . . . . 1 3 . . . . 1 . . . . . . . . . 1 . Combat Hostiles 6 | . . . . . . . . . . . . . . . . . . . . . 1 3 . . . . 1 . . . . . . . . . 1 . Parts Fried 19 | . . . . . . . . . 5 . . . . . 1 . . . . . 2 5 1 . . . 2 . . . . 1 . . . . 2 . Impact Corruptions 8 | . . . . . . . 1 . 5 . . . . . 1 . . . . . . . 1 . . . . . . . . . . . . . . . Robots Melted 17 | . 1 . . . 1 . . . . . . . 2 1 2 2 . . . . . . . . . . . . . . . . . 2 . 1 5 . Combat Hostiles 16 | . 1 . . . 1 . . . . . . . 2 1 2 2 . . . . . . . . . . . . . . . . . 1 . 1 5 . Parts Melted 101 | . 4 1 1 . 11 . . . . 6 2 . 7 6 9 7 . 1 . . . . . . . . . . . . 2 4 . 3 3 13 21 . Heat Transferred 43969 | 175 2012 555 259 37 3774 . . . 148 1665 518 . 2220 2780 3459 1575 476 1172 . 300 1429 525 . . 409 800 . . . . 518 3589 . 1554 1082 4107 4938 3893 Parts Sabotaged . | . . . . . . . . . . . . . . . . . . . . . . . . . . . . . . . . . . . . . . . Parts Stolen . | . . . . . . . . . . . . . . . . . . . . . . . . . . . . . . . . . . . . . . . Parts Stripped . | . . . . . . . . . . . . . . . . . . . . . . . . . . . . . . . . . . . . . . . Power Chain Reactions 2 | . . . . . . . . . . . . . . . . . . . . . . 1 . . . . 1 . . . . . . . . . . . Alert | -11 -10 -10 -10 -9 -8 -8 -8 -8 -7 -7 -7 -7 -6 -6 -6 -6 -6 -6 -5 -5 -5 -5 -4 -4 -4 -4 -4 -4 -4 -3 -3 -3 -3 -3 -2 -1 -1 -1 ------- Run | Yrd Mat Min Exi Min Mat Gar Mat Gar Fac Low Low Zio Pro Fac Ext Cet Arc Hub Fac Upp Upp War Pro Fac Was Fac Upp Upp Zhi Pro Res Gar Res DSF Res Acc Com Ac0 Maximum Alert Level 4 | . 1 . . . 1 3 2 4 3 . . . . . 2 1 1 3 2 . . . . 2 . 3 . . . . . 4 3 3 2 2 3 . Low Security (%) 35 | 100 81 100 . 100 53 . . . . . . . . 100 76 6 42 30 . . . . . 7 100 64 . . . . 100 25 . . . 27 . . Level 1 19 | . 18 . . . 46 13 28 10 . . . . . . 14 93 57 18 40 . . . . 34 . 7 . . . . . 19 . . 67 46 4 . Level 2 26 | . . . . . . 41 71 21 40 . . . . . 8 . . 24 59 . . . . 57 . 14 . . . . . 20 . 47 32 26 62 . Level 3 15 | . . . . . . 45 . 31 59 . . . . . . . . 26 . . . . . . . 13 . . . . . 18 100 52 . . 32 . Level 4 2 | . . . . . . . . 35 . . . . . . . . . . . . . . . . . . . . . . . 15 . . . . . . Level 5 . | . . . . . . . . . . . . . . . . . . . . . . . . . . . . . . . . . . . . . . . High Security . | . . . . . . . . . . . . . . . . . . . . . . . . . . . . . . . . . . . . . . . Max Security . | . . . . . . . . . . . . . . . . . . . . . . . . . . . . . . . . . . . . . . . Sterilizations 1 | . . . . . . . . . . . . . . . . . . . . . . . . . . . . . . . . . . 1 . . . . Peak Influence 1530 | 5 241 106 . 76 380 879 538 1530 810 . . . . 48 432 328 270 1042 498 . . . . 517 66 899 . . . . 82 1434 806 855 519 528 655 . Initial 806 | . . 66 . . . 243 428 262 802 . . . . 16 . 232 74 44 494 . . . . 517 66 . . . . . . 13 806 593 480 159 320 . Average 324 | 1 109 29 . 12 167 586 441 846 675 . . . . 5 152 245 201 474 416 . . . . 361 8 273 . . . . 23 564 796 717 360 313 494 . Influence Increases 18622 | 25 652 173 20 81 1025 656 770 1368 446 165 145 . 495 199 998 341 286 1444 55 203 360 337 340 478 . 1617 343 184 10 105 278 1621 5 302 312 1287 1015 481 Destroy 0b10 Robot/C 9080 | . 360 120 20 60 620 440 420 540 160 140 120 . 360 100 580 160 80 400 . 160 300 280 280 . . 760 300 160 . 100 60 740 . 200 20 480 560 . Destroy 0b10 Robot/NC 810 | 25 30 . . 5 90 10 80 15 60 5 5 . . 15 30 10 40 30 . . . 10 15 5 . 120 5 . 10 5 15 10 . 5 35 35 90 . Destroy Leader 1464 | . 84 20 . 10 154 20 126 40 54 20 20 . 50 46 74 . . 106 . 20 30 . 30 2 . 168 20 20 . . 22 40 . 40 6 120 122 . Allied During Kill 1264 | . . . . . . 7 13 21 . . . . 85 . 219 154 120 400 . 23 30 2 . . . 16 18 4 . . . 142 . 1 . 9 . . Trap Triggered on 0b10 30 | . . . . . . . . . . . . . . . . . . . . . . . . . . . . . . . . 20 . . . 10 . . Successful Hack 826 | . 10 . . . 26 38 7 12 96 . . . . 25 27 . . 25 14 . . . . 7 . 101 . . . . 134 . 5 . 86 180 33 . Select Force Hacks 120 | . 60 . . . 60 . . . . . . . . . . . . . . . . . . . . . . . . . . . . . . . . . Disable Machine 1020 | . 30 . . . 45 . 60 45 15 . . . . . 30 15 45 330 . . . . . . . 225 . . . . 15 45 . 15 15 . 60 30 Anti-Garrison Action 950 | . . . . . . 100 . 500 . . . . . . . . . . . . . . . . . . . . . . . 350 . . . . . . Destroy Structure 1963 | . 48 33 . 6 15 41 19 135 16 . . . . 13 23 2 1 138 26 . . . . 14 . 152 . . . . 32 139 . 26 150 333 150 451 Advance Influence 450 | . . . . . . . . . . . . . . . . . . . . . . . . 450 . . . . . . . . . . . . . . Partial Spotted 45 | . . . . . . . . . . . . . . . . . . . 15 . . . . . . . . . . . . . . . . 30 . . Lose Combat Pursuer 600 | . 30 . . . 15 . 45 60 45 . . . . . 15 . . 15 . . . 45 15 . . 75 . . . . . 135 . 15 . 90 . . Influence Decreases 18371 | 25 481 344 8 93 650 152 1245 242 1422 590 274 . 469 225 582 570 347 560 738 524 298 180 458 396 189 722 786 353 293 105 260 205 648 238 901 1053 720 1025 Entered New Map 6276 | . . 105 . 12 . 132 451 142 728 206 25 . . 10 . 184 113 82 516 122 2 68 225 40 123 . 332 87 283 . . 5 628 198 375 107 180 795 Time Decay 9385 | 25 441 239 8 81 450 . 474 . 514 334 239 . 329 205 462 246 214 368 222 362 256 72 233 206 66 562 404 246 10 105 260 . 20 . 526 696 510 . Search Patrol Dispatched 150 | . . . . . . . . . . . . . . . . . . . . . . . . 150 . . . . . . . . . . . . . . Lost Part 800 | . 40 . . . 50 20 . 20 10 40 10 . 40 . . . . 10 . . 40 20 . . . 120 50 20 . . . 40 . . . 20 30 220 Lost Ally 1010 | . . . . . . . 20 80 20 10 . . 100 10 120 140 20 100 . 40 . 20 . . . 40 . . . . . 160 . 40 . 80 . 10 Purge Threat 750 | . . . . . 150 . 300 . 150 . . . . . . . . . . . . . . . . . . . . . . . . . . 150 . . Squads Dispatched 74 | . 5 . . . 8 . 2 . 5 . . . . 6 2 . . 7 1 . . . 2 . . 10 . . . . 1 . . 3 1 16 5 . Investigation 12 | . 4 . . . 3 . . . . . . . . 1 . . . 1 . . . . . . . 1 . . . . . . . . . 1 1 . Extermination 24 | . . . . . . . . . 2 . . . . 3 . . . 2 1 . . . . . . 4 . . . . . . . . . 8 4 . Reinforcement 27 | . 1 . . . 1 . 2 . 3 . . . . 2 2 . . 4 . . . . . . . 4 . . . . 1 . . 3 1 3 . . Assault 4 | . . . . . . . . . . . . . . . . . . . . . . . 2 . . 1 . . . . . . . . . 1 . . Garrison 7 | . . . . . 4 . . . . . . . . . . . . . . . . . . . . . . . . . . . . . . 3 . . Intercept . | . . . . . . . . . . . . . . . . . . . . . . . . . . . . . . . . . . . . . . . Searches Triggered 1 | . . . . . . . . . . . . . . . . . . . . . . . . 1 . . . . . . . . . . . . . . Construction Impeded 4 | . . . . . . . . . . . . . . . 1 . . 1 . . . . . . . 2 . . . . . . . . . . . . Haulers Reinforced 6 | . . . . . . . . . 1 . . . . . . . . . . . . . . . . 2 . . . . 1 . . . 1 1 . . Active Scanning Responses . | . . . . . . . . . . . . . . . . . . . . . . . . . . . . . . . . . . . . . . . Cargo Convoy Interrupts . | . . . . . . . . . . . . . . . . . . . . . . . . . . . . . . . . . . . . . . . Stealth | -11 -10 -10 -10 -9 -8 -8 -8 -8 -7 -7 -7 -7 -6 -6 -6 -6 -6 -6 -5 -5 -5 -5 -4 -4 -4 -4 -4 -4 -4 -3 -3 -3 -3 -3 -2 -1 -1 -1 --------- Run | Yrd Mat Min Exi Min Mat Gar Mat Gar Fac Low Low Zio Pro Fac Ext Cet Arc Hub Fac Upp Upp War Pro Fac Was Fac Upp Upp Zhi Pro Res Gar Res DSF Res Acc Com Ac0 Distress Signals 73 | . 4 . . . 1 . 6 . 1 . . . . 2 2 1 . 4 . . . . . . . 7 . . . . 6 . . . 5 9 25 . Communications Jammed 104 | . . . . . . . . . . . . . . . . . . . . . . . . . . 26 . . . . 11 . . . . 53 14 . Distress Signals 104 | . . . . . . . . . . . . . . . . . . . . . . . . . . 26 . . . . 11 . . . . 53 14 . Times Spotted 703 | . 26 6 1 3 50 17 33 25 17 13 6 . 19 11 30 10 8 24 3 7 15 66 20 1 . 60 15 10 . 6 12 38 . 13 22 37 31 48 Peak Tracking Total 18 | . 5 3 1 3 7 5 5 6 3 4 3 . 4 3 5 5 2 9 3 4 9 18 9 1 . 7 6 8 . 4 3 9 . 4 7 7 4 6 Tactical Retreats 28 | . 1 . . . 1 . 2 2 2 . . . . . 1 . . 1 . . . 3 1 . . 4 . . . . . 5 . 1 . 3 . 1 Traps | -11 -10 -10 -10 -9 -8 -8 -8 -8 -7 -7 -7 -7 -6 -6 -6 -6 -6 -6 -5 -5 -5 -5 -4 -4 -4 -4 -4 -4 -4 -3 -3 -3 -3 -3 -2 -1 -1 -1 ------- Run | Yrd Mat Min Exi Min Mat Gar Mat Gar Fac Low Low Zio Pro Fac Ext Cet Arc Hub Fac Upp Upp War Pro Fac Was Fac Upp Upp Zhi Pro Res Gar Res DSF Res Acc Com Ac0 Traps Triggered 37 | . 4 . . . . 4 . 7 . . . . . 1 1 . . . . . . . . 1 . 5 1 . . . . 9 . 2 . . 2 . Indirectly . | . . . . . . . . . . . . . . . . . . . . . . . . . . . . . . . . . . . . . . . Trap Hack Attempts . | . . . . . . . . . . . . . . . . . . . . . . . . . . . . . . . . . . . . . . . Triggered . | . . . . . . . . . . . . . . . . . . . . . . . . . . . . . . . . . . . . . . . Disarmed . | . . . . . . . . . . . . . . . . . . . . . . . . . . . . . . . . . . . . . . . Reprogrammed 1 | . . . . . . . . . . . . . . . . . . . . . . . . . . . . . . . . . . . . 1 . . Reused 4 | . . . . . . . . . . . . . . . . . . . . . . 1 . . . . . . . . . 2 . . . 1 . . Traps Extracted . | . . . . . . . . . . . . . . . . . . . . . . . . . . . . . . . . . . . . . . . Installed 5 | . . . . . . . . . . . . . . . . . . . . . . 3 . . . . . . . . . 2 . . . . . . Triggered 4 | . . . . . . . . . . . . . . . . . . . . . . 1 . . . . . . . . . 2 . . . 1 . . Most Traps Carried 6 | . . . . . . . . . . . 4 4 4 4 4 4 4 4 4 4 4 4 6 6 6 6 6 6 6 6 6 6 4 4 . . . . Machines | -11 -10 -10 -10 -9 -8 -8 -8 -8 -7 -7 -7 -7 -6 -6 -6 -6 -6 -6 -5 -5 -5 -5 -4 -4 -4 -4 -4 -4 -4 -3 -3 -3 -3 -3 -2 -1 -1 -1 ---------- Run | Yrd Mat Min Exi Min Mat Gar Mat Gar Fac Low Low Zio Pro Fac Ext Cet Arc Hub Fac Upp Upp War Pro Fac Was Fac Upp Upp Zhi Pro Res Gar Res DSF Res Acc Com Ac0 Machines Disabled 85 | . 2 . 1 . 3 2 4 9 1 . . . . . 2 1 3 22 . 1 . 1 . . . 15 1 . 2 . 1 6 . 1 1 . 4 2 Max in Single Turn 8 | . 2 . 1 . 1 1 1 2 1 . . . . . 1 1 1 1 . 1 . 1 . . . 8 1 . 1 . 1 1 . 1 1 . 1 1 Garrison Access 9 | . . . . . . . . . 2 . . . . 1 . . . . 1 . . . . . . . . . . . . . . . 2 3 . . Garrison Relay 8 | . . . . . . 2 . 3 . . . . . . . . . . . . . . . . . . . . . . . 3 . . . . . . Phase Generator 1 | . . . . . . . . 1 . . . . . . . . . . . . . . . . . . . . . . . . . . . . . . Network Hub 1 | . . . . . . . . . . . . . . . . . . 1 . . . . . . . . . . . . . . . . . . . . Energy Cycler 1 | . . . . . . . . . . . . . . . 1 . . . . . . . . . . . . . . . . . . . . . . . Machines Repaired . | . . . . . . . . . . . . . . . . . . . . . . . . . . . . . . . . . . . . . . . Machines Dismantled . | . . . . . . . . . . . . . . . . . . . . . . . . . . . . . . . . . . . . . . . Machines Sabotaged . | . . . . . . . . . . . . . . . . . . . . . . . . . . . . . . . . . . . . . . . Overloaded Fab Kills . | . . . . . . . . . . . . . . . . . . . . . . . . . . . . . . . . . . . . . . . Hacking | -11 -10 -10 -10 -9 -8 -8 -8 -8 -7 -7 -7 -7 -6 -6 -6 -6 -6 -6 -5 -5 -5 -5 -4 -4 -4 -4 -4 -4 -4 -3 -3 -3 -3 -3 -2 -1 -1 -1 --------- Run | Yrd Mat Min Exi Min Mat Gar Mat Gar Fac Low Low Zio Pro Fac Ext Cet Arc Hub Fac Upp Upp War Pro Fac Was Fac Upp Upp Zhi Pro Res Gar Res DSF Res Acc Com Ac0 Machines Accessed 129 | . 8 . 1 1 12 3 8 2 12 . . . . 9 11 1 . 7 3 . . 2 . 2 . 7 . . 4 . 7 . 1 . 2 18 8 . Terminals 90 | . 5 . . . 8 3 7 2 8 . . . . 6 11 1 . 7 1 . . . . 1 . 4 . . . . 6 . 1 . 2 11 6 . Fabricators 3 | . . . . . . . . . . . . . . . . . . . . . . . . 1 . 1 . . . . . . . . . 1 . . Repair Stations 6 | . 1 . . . 1 . . . 1 . . . . 1 . . . . . . . . . . . . . . . . . . . . . 1 1 . Recycling Units 9 | . 2 . . . 1 . . . . . . . . 1 . . . . 1 . . . . . . 2 . . . . . . . . . 1 1 . Scanalyzers 3 | . . . . . 1 . . . 1 . . . . . . . . . . . . . . . . . . . . . . . . . . 1 . . Garrison Access 10 | . . . . . 1 . 1 . 2 . . . . 1 . . . . 1 . . . . . . . . . . . 1 . . . . 3 . . Total Hacks 395 | . 19 . 1 1 30 7 26 5 27 . . . . 22 21 4 . 16 8 . . 5 . 13 . 48 . . 17 . 41 . 1 . 11 59 13 . Successful 210 | . 13 . 1 1 21 5 14 1 16 . . . . 13 9 . . 10 3 . . 5 . 5 . 19 . . 17 . 17 . 1 . 6 28 5 . Failed 185 | . 6 . . . 9 2 12 4 11 . . . . 9 12 4 . 6 5 . . . . 8 . 29 . . . . 24 . . . 5 31 8 . Catastrophic 40 | . . . . . . . 2 2 1 . . . . 3 . 2 . 2 1 . . . . 5 . 8 . . . . 2 . . . 1 7 4 . Database Lockouts . | . . . . . . . . . . . . . . . . . . . . . . . . . . . . . . . . . . . . . . . Manual 211 | . 14 . 1 . 24 2 24 . 13 . . . . 15 10 1 . 13 . . . . . 6 . 25 . . . . 25 . . . 9 23 6 . Terminals 294 | . 13 . . . 22 7 23 5 19 . . . . 15 21 4 . 16 2 . . . . 11 . 36 . . . . 40 . 1 . 11 38 10 . Fabricators 12 | . . . . . . . . . . . . . . . . . . . . . . . . 2 . 8 . . . . . . . . . 2 . . Repair Stations 14 | . 1 . . . 3 . . . 2 . . . . 2 . . . . . . . . . . . . . . . . . . . . . 4 2 . Recycling Units 23 | . 5 . . . 2 . . . . . . . . 3 . . . . 2 . . . . . . 4 . . . . . . . . . 6 1 . Scanalyzers 7 | . . . . . 1 . . . 2 . . . . . . . . . . . . . . . . . . . . . . . . . . 4 . . Garrison Access 21 | . . . . . 2 . 3 . 4 . . . . 2 . . . . 4 . . . . . . . . . . . 1 . . . . 5 . . Terminal Hacks 87 | . 2 . 1 1 3 4 5 1 4 . . . . 2 5 . . 3 1 . . 5 . 2 . 6 . . 17 . 8 . 1 . 2 11 3 . Record 5 | . . . . . . . . . . . . . . . . . . . . . . . . . . . . . 5 . . . . . . . . . Part Schematic 5 | . . . . . . . . . . . . . . . . . . . . . . . . . . . . . 4 . 1 . . . . . . . Robot Analysis 11 | . 1 . . . 1 . 2 . . . . . . . . . . . . . . . . . . 1 . . 4 . 1 . . . . 1 . . Prototype ID Bank 13 | . 1 . . . . . . . . . . . . . . . . . . . . 4 . 1 . 1 . . 4 . 1 . . . 1 . . . Open Door 12 | . . . . 1 . 1 . . . . . . . 1 4 . . . . . . 1 . . . . . . . . . . . . . 3 1 . Open DSF 1 | . . . . . . . . . . . . . . . . . . . . . . . . . . . . . . . . . 1 . . . . . Branch Access Points 6 | . . . . . . . . . 1 . . . . . . . . . 1 . . . . 1 . 1 . . . . 1 . . . . 1 . . Emergency Access Points 2 | . . . . . . . . 1 . . . . . . . . . . . . . . . . . . . . . . 1 . . . . . . . Terminal Index 7 | . . . . . 1 . . . . . . . . . 1 . . 1 . . . . . . . 1 . . . . 1 . . . . 1 1 . Garrison Index 1 | . . . . . . . . . 1 . . . . . . . . . . . . . . . . . . . . . . . . . . . . . Alert Level 5 | . . . . . . . 1 . . . . . . . . . . 1 . . . . . . . 1 . . . . . . . . . 1 1 . Unreport Threat 5 | . . . . . 1 . 2 . 1 . . . . . . . . . . . . . . . . . . . . . . . . . . 1 . . Reprogram Traps 1 | . . . . . . . . . . . . . . . . . . . . . . . . . . . . . . . . . . . . 1 . . Patrol Status 1 | . . . . . . . . . . . . . . . . . . 1 . . . . . . . . . . . . . . . . . . . . Recall Extermination 1 | . . . . . . . . . 1 . . . . . . . . . . . . . . . . . . . . . . . . . . . . . Hauler Manifests 3 | . . . . . . . . . . . . . . 1 . . . . . . . . . . . . . . . . 1 . . . 1 . . . Zone Layout 4 | . . . . . . . . . . . . . . . . . . . . . . . . . . 1 . . . . 1 . . . . 2 . . Garrison Registry 1 | . . . . . . 1 . . . . . . . . . . . . . . . . . . . . . . . . . . . . . . . . Security Stations 2 | . . . . . . 2 . . . . . . . . . . . . . . . . . . . . . . . . . . . . . . . . Proto ID Catalog 1 | . . . 1 . . . . . . . . . . . . . . . . . . . . . . . . . . . . . . . . . . . Fabricator Hacks 1 | . . . . . . . . . . . . . . . . . . . . . . . . . . 1 . . . . . . . . . . . . Build 1 | . . . . . . . . . . . . . . . . . . . . . . . . . . 1 . . . . . . . . . . . . Repair Station Hacks 5 | . . . . . 2 . . . 1 . . . . . . . . . . . . . . . . . . . . . . . . . . 1 1 . Scan Component 4 | . . . . . 1 . . . 1 . . . . . . . . . . . . . . . . . . . . . . . . . . 1 1 . Repair 1 | . . . . . 1 . . . . . . . . . . . . . . . . . . . . . . . . . . . . . . . . . Recycling Unit Hacks 10 | . 2 . . . 1 . . . . . . . . 1 . . . . 1 . . . . . . 3 . . . . . . . . . 1 1 . Retrieve Components 10 | . 2 . . . 1 . . . . . . . . 1 . . . . 1 . . . . . . 3 . . . . . . . . . 1 1 . Scanalyzer 5 | . . . . . . . . . 1 . . . . . . . . . . . . . . . . . . . . . . . . . . 4 . . Insert Component 5 | . . . . . . . . . 1 . . . . . . . . . . . . . . . . . . . . . . . . . . 4 . . Garrison Access Hacks 10 | . . . . . 1 . 1 . 2 . . . . 1 . . . . 1 . . . . . . . . . . . 1 . . . . 3 . . Unlock Access 3 | . . . . . 1 . 1 . . . . . . . . . . . . . . . . . . . . . . . 1 . . . . . . . Seal Access 7 | . . . . . . . . . 2 . . . . 1 . . . . 1 . . . . . . . . . . . . . . . . 3 . . Unauthorized Hacks 92 | . 9 . . . 14 1 8 . 8 . . . . 9 4 . . 7 . . . . . 3 . 9 . . . . 8 . . . 4 8 . . Terminals 83 | . 7 . . . 12 1 8 . 8 . . . . 8 4 . . 7 . . . . . 3 . 7 . . . . 8 . . . 4 6 . . Assimilate 5 | . . . . . . . 2 . 1 . . . . 1 . . . . . . . . . . . . . . . . 1 . . . . . . . Botnet 17 | . 1 . . . 3 1 1 . . . . . . 1 1 . . 1 . . . . . 1 . 3 . . . . 1 . . . 2 1 . . Disrupt 1 | . . . . . 1 . . . . . . . . . . . . . . . . . . . . . . . . . . . . . . . . . Operators 8 | . 1 . . . 1 . . . 1 . . . . 1 . . . . . . . . . 1 . 1 . . . . 1 . . . 1 . . . Skim 52 | . 5 . . . 7 . 5 . 6 . . . . 5 3 . . 6 . . . . . 1 . 3 . . . . 5 . . . 1 5 . . Fabricators 3 | . . . . . . . . . . . . . . . . . . . . . . . . . . 2 . . . . . . . . . 1 . . Report 1 | . . . . . . . . . . . . . . . . . . . . . . . . . . 1 . . . . . . . . . . . . Liberate 1 | . . . . . . . . . . . . . . . . . . . . . . . . . . . . . . . . . . . . 1 . . Haulers 1 | . . . . . . . . . . . . . . . . . . . . . . . . . . 1 . . . . . . . . . . . . Repair Stations 1 | . . . . . . . . . . . . . . 1 . . . . . . . . . . . . . . . . . . . . . . . . Patch 1 | . . . . . . . . . . . . . . 1 . . . . . . . . . . . . . . . . . . . . . . . . Recycling Units 4 | . 2 . . . 1 . . . . . . . . . . . . . . . . . . . . . . . . . . . . . . 1 . . Reject 1 | . . . . . . . . . . . . . . . . . . . . . . . . . . . . . . . . . . . . 1 . . Tunnel 3 | . 2 . . . 1 . . . . . . . . . . . . . . . . . . . . . . . . . . . . . . . . . Scanalyzers 1 | . . . . . 1 . . . . . . . . . . . . . . . . . . . . . . . . . . . . . . . . . Extract 1 | . . . . . 1 . . . . . . . . . . . . . . . . . . . . . . . . . . . . . . . . . Garrison Access . | . . . . . . . . . . . . . . . . . . . . . . . . . . . . . . . . . . . . . . . Data Cores Recovered 4 | . . . . . . . 1 . . . . . . . . . . . . . . . . . . . . . . . 2 . . . . . 1 . Used 2 | . . . . . . . 1 . . . . . . . . . . . . . . . . . . . . . . . . . . . . . 1 . Hacking Detections 101 | . 7 . . . 10 2 8 2 10 . . . . 5 9 2 . 7 2 . . . . 2 . 6 . . . . 7 . . . 2 14 6 . Full Trace Events 8 | . . . . . 1 . 1 2 . . . . . . . . . 1 . . . . . . . 1 . . . . . . . . . 1 1 . Feedback Events 3 | . . . . . . . . 1 . . . . . . . . . 2 . . . . . . . . . . . . . . . . . . . . Corruption 2 | . . . . . . . . 1 . . . . . . . . . 1 . . . . . . . . . . . . . . . . . . . . Hackware Fried 1 | . . . . . . . . . . . . . . . . . . 1 . . . . . . . . . . . . . . . . . . . . Feedback Blocked . | . . . . . . . . . . . . . . . . . . . . . . . . . . . . . . . . . . . . . . . Robot Schematics Acquired 3 | . . . . . . . . . . . . 3 . . . . . . . . . . . . . . . . . . . . . . . . . . Robots Built 2 | . . . . . . . . . . . . . . . . . . . . . . . . . . 2 . . . . . . . . . . . . Authchips . | . . . . . . . . . . . . . . . . . . . . . . . . . . . . . . . . . . . . . . . Time 93 | . . . . . . . . . . . . . . . . . . . . . . . . . . 93 . . . . . . . . . . . . Total Robot Build Rating 14 | . . . . . . . . . . . . . . . . . . . . . . . . . . 14 . . . . . . . . . . . . Part Schematics Acquired 22 | . . . . . 2 . . . . . . 15 . . . . . . . . . . . . . . . . 4 . 1 . . . . . . . Parts Built . | . . . . . . . . . . . . . . . . . . . . . . . . . . . . . . . . . . . . . . . Authchips . | . . . . . . . . . . . . . . . . . . . . . . . . . . . . . . . . . . . . . . . Time . | . . . . . . . . . . . . . . . . . . . . . . . . . . . . . . . . . . . . . . . Total Part Build Rating . | . . . . . . . . . . . . . . . . . . . . . . . . . . . . . . . . . . . . . . . Parts Repaired 1 | . . . . . 1 . . . . . . . . . . . . . . . . . . . . . . . . . . . . . . . . . Time 26 | . . . . . 26 . . . . . . . . . . . . . . . . . . . . . . . . . . . . . . . . . Parts Recycled . | . . . . . . . . . . . . . . . . . . . . . . . . . . . . . . . . . . . . . . . Recycled Matter . | . . . . . . . . . . . . . . . . . . . . . . . . . . . . . . . . . . . . . . . Retrieved Matter . | . . . . . . . . . . . . . . . . . . . . . . . . . . . . . . . . . . . . . . . Retrieved Components 63 | . 10 . . . 9 . . . . . . . . 8 . . . . 3 . . . . . . 20 . . . . . . . . . 10 3 . Parts Scanalyzed . | . . . . . . . . . . . . . . . . . . . . . . . . . . . . . . . . . . . . . . . Part Schematics Acquired . | . . . . . . . . . . . . . . . . . . . . . . . . . . . . . . . . . . . . . . . Parts Damaged . | . . . . . . . . . . . . . . . . . . . . . . . . . . . . . . . . . . . . . . . Bothacking | -11 -10 -10 -10 -9 -8 -8 -8 -8 -7 -7 -7 -7 -6 -6 -6 -6 -6 -6 -5 -5 -5 -5 -4 -4 -4 -4 -4 -4 -4 -3 -3 -3 -3 -3 -2 -1 -1 -1 ------------ Run | Yrd Mat Min Exi Min Mat Gar Mat Gar Fac Low Low Zio Pro Fac Ext Cet Arc Hub Fac Upp Upp War Pro Fac Was Fac Upp Upp Zhi Pro Res Gar Res DSF Res Acc Com Ac0 Used RIF Installer . | . . . . . . . . . . . . . . . . . . . . . . . . . . . . . . . . . . . . . . . Robots Hacked . | . . . . . . . . . . . . . . . . . . . . . . . . . . . . . . . . . . . . . . . Non-combat . | . . . . . . . . . . . . . . . . . . . . . . . . . . . . . . . . . . . . . . . Combat . | . . . . . . . . . . . . . . . . . . . . . . . . . . . . . . . . . . . . . . . Robot Hacks Applied . | . . . . . . . . . . . . . . . . . . . . . . . . . . . . . . . . . . . . . . . Relay Couplers Released 39 | . . . . . . 11 . 13 . . . . . . . . . . . . . . . . . . . . . . . 13 . . 2 . . . Machine Destruction 35 | . . . . . . 7 . 13 . . . . . . . . . . . . . . . . . . . . . . . 13 . . 2 . . . Programmers 4 | . . . . . . 4 . . . . . . . . . . . . . . . . . . . . . . . . . . . . . . . . Fabnet Peak Effective % . | . . . . . . . . . . . . . . . . . . . . . . . . . . . . . . . . . . . . . . . Robots Rewired 34 | . . . . . . . . 6 . . . . . . 11 . . . . 3 2 . . . . . 2 . . . . 10 . . . . . . Allies Hacked . | . . . . . . . . . . . . . . . . . . . . . . . . . . . . . . . . . . . . . . . Hacks Repelled . | . . . . . . . . . . . . . . . . . . . . . . . . . . . . . . . . . . . . . . . Allies | -11 -10 -10 -10 -9 -8 -8 -8 -8 -7 -7 -7 -7 -6 -6 -6 -6 -6 -6 -5 -5 -5 -5 -4 -4 -4 -4 -4 -4 -4 -3 -3 -3 -3 -3 -2 -1 -1 -1 -------- Run | Yrd Mat Min Exi Min Mat Gar Mat Gar Fac Low Low Zio Pro Fac Ext Cet Arc Hub Fac Upp Upp War Pro Fac Was Fac Upp Upp Zhi Pro Res Gar Res DSF Res Acc Com Ac0 Total Allies 64 | . . . . . . 2 . 8 1 . . 6 . 1 20 5 . . . 3 2 . . . . 2 2 . . . . 10 . . . 2 . . Largest Group 13 | . . . . . . 2 1 6 2 1 . 6 6 1 13 11 8 6 . 2 3 3 . . . 2 2 2 . . . 6 1 1 . 2 . . Highest-Rated Group 710 | . . . . . . 59 39 72 62 26 . 157 157 10 517 710 614 451 . 60 85 91 . . . 112 79 79 . . . 260 148 148 . 128 . . Highest-Rated Ally 159 | . . . . . . 39 39 31 31 26 . 31 31 10 159 159 137 96 . 30 30 31 . . . 56 49 49 . . . 148 148 148 . 64 . . Initial Warlord ECA Mod 326 | . . . . . . . 2 2 11 11 11 11 10 10 10 10 10 10 9 9 9 9 8 8 8 8 8 8 8 7 7 7 12 12 21 20 20 20 Total Orders 69 | . . . . . . . . . 2 4 . . . . 3 1 3 5 . 1 . 5 . . . 2 2 2 . . . 9 3 3 4 16 . 4 STAY 22 | . . . . . . . . . 1 1 . . . . 2 1 2 4 . 1 . . . . . 1 1 1 . . . 4 2 1 . . . . ROAM 2 | . . . . . . . . . . . . . . . . . . . . . . 1 . . . . . . . . . . . . . 1 . . FOLLOW 17 | . . . . . . . . . 1 3 . . . . 1 . 1 1 . . . 1 . . . 1 1 . . . . 5 1 1 . . . . EXPLORE 17 | . . . . . . . . . . . . . . . . . . . . . . 2 . . . . . 1 . . . . . . 2 9 . 3 RETURN 11 | . . . . . . . . . . . . . . . . . . . . . . 1 . . . . . . . . . . . 1 2 6 . 1 Ally Attacks 422 | . . . . . . 13 23 22 1 . . . 28 . 56 50 19 64 . 1 4 12 . . . 14 . 4 . . . 89 . 8 . 14 . . Total Damage 11257 | . . . . . . 217 271 368 . . . . 462 . 1598 1288 645 2896 . . 170 194 . . . 464 . 96 . . . 2173 . 5 . 410 . . Kills 79 | . . . . . . 5 4 3 . . . . 3 . 16 5 5 22 . . 2 . . . . 2 . 1 . . . 10 . . . 1 . . Allies Corrupted 5 | . . . . . . . . . . . . . . . . . . 3 . . . 2 . . . . . . . . . . . . . . . . Allies Melted . | . . . . . . . . . . . . . . . . . . . . . . . . . . . . . . . . . . . . . . . Intel | -11 -10 -10 -10 -9 -8 -8 -8 -8 -7 -7 -7 -7 -6 -6 -6 -6 -6 -6 -5 -5 -5 -5 -4 -4 -4 -4 -4 -4 -4 -3 -3 -3 -3 -3 -2 -1 -1 -1 ------- Run | Yrd Mat Min Exi Min Mat Gar Mat Gar Fac Low Low Zio Pro Fac Ext Cet Arc Hub Fac Upp Upp War Pro Fac Was Fac Upp Upp Zhi Pro Res Gar Res DSF Res Acc Com Ac0 Active Infowar (turns) 40582 | 38 2002 541 732 . 650 . 1168 139 147 742 524 1603 815 1779 1251 522 454 995 474 810 1123 1131 1318 432 572 1755 968 526 397 521 1150 1826 54 437 1478 2919 7567 1022 Optics 28000 | . . . . . . . . . 145 742 524 1603 815 1779 1251 522 454 995 474 810 1123 1131 1315 432 572 334 . . . . . . . . 1475 2919 7563 1022 Sensors 2 | . . . . . . . . . . . . . . . . . . . . . . . . . . . . . . . . . . . . . 2 . Terrain 849 | . . . . . . . . . 2 . . . . . . . . . . . . . . . . . . . . . . . . . . 847 . . Seismic 3963 | 38 2002 541 732 . 650 . . . . . . . . . . . . . . . . . . . . . . . . . . . . . . . . . Machine Analysis 9845 | . . . . . . . 1168 139 . . . . . . . . . . . . . . . . . . . . . . 1118 1826 54 437 1478 2919 706 . Jamming 20611 | . . . . . . . . . . 345 491 1603 815 693 . . . 62 162 . 48 . 1238 432 572 1755 968 526 397 521 721 282 . . 415 1930 6635 . Robot Analysis Total 11 | . 1 . . . 1 . 2 . . . . . . . . . . . . . . . . . . 1 . . 4 . 1 . . . . 1 . . Derelict Logs Recovered 14 | . . 1 . 1 . . . . . 2 1 2 1 . . . . . . 2 1 . 1 . . . 2 . . . . . . . . . . . Drone Launches 26 | . . . . . . . . . . . . . . . . . . . . . . 2 . . . . . 1 . . . . . 6 2 10 . 5 Drone Recoveries 18 | . . . . . . . . . . . . . . . . . . . . . . 2 . . . . . 1 . . . . . 5 2 6 . 2 Exploration | -11 -10 -10 -10 -9 -8 -8 -8 -8 -7 -7 -7 -7 -6 -6 -6 -6 -6 -6 -5 -5 -5 -5 -4 -4 -4 -4 -4 -4 -4 -3 -3 -3 -3 -3 -2 -1 -1 -1 ------------- Run | Yrd Mat Min Exi Min Mat Gar Mat Gar Fac Low Low Zio Pro Fac Ext Cet Arc Hub Fac Upp Upp War Pro Fac Was Fac Upp Upp Zhi Pro Res Gar Res DSF Res Acc Com Ac0 Turns Passed 49919 | 203 2243 942 777 557 3626 1179 1200 1997 1419 742 524 1603 815 1779 1251 522 454 995 474 820 1134 1131 1329 432 572 2334 968 526 397 521 1150 1826 54 437 1478 2919 7567 1022 Spaces Moved 22489 | 93 870 545 302 307 1279 430 517 649 742 393 299 939 382 584 617 232 240 506 246 397 525 513 703 178 333 815 423 301 207 318 714 752 15 108 710 1061 3959 285 Core 3 | 3 . . . . . . . . . . . . . . . . . . . . . . . . . . . . . . . . . . . . . . Treads 20858 | 90 870 545 302 307 1279 430 517 649 742 393 299 939 382 581 617 232 240 506 246 397 525 513 703 178 333 815 423 301 159 . . 207 15 108 710 1061 3959 285 Legs 1628 | . . . . . . . . . . . . . . 3 . . . . . . . . . . . . . . 48 318 714 545 . . . . . . Wheels . | . . . . . . . . . . . . . . . . . . . . . . . . . . . . . . . . . . . . . . . Hover . | . . . . . . . . . . . . . . . . . . . . . . . . . . . . . . . . . . . . . . . Flight . | . . . . . . . . . . . . . . . . . . . . . . . . . . . . . . . . . . . . . . . Fastest Speed 50 | 50 160 160 160 160 160 235 155 235 156 156 158 158 158 148 148 160 160 160 160 160 160 160 160 160 160 152 152 152 160 120 116 116 246 246 160 160 143 141 Average Speed 169 | 156 160 160 160 175 215 235 175 235 158 160 159 158 191 219 155 160 160 160 160 160 172 170 171 183 162 200 184 154 167 146 139 171 246 247 160 164 146 144 Slowest Speed 470 | 160 160 160 160 240 240 235 235 235 240 162 162 158 250 330 160 160 160 160 160 160 245 245 240 240 240 245 232 160 330 190 470 330 246 250 160 250 215 150 Overloaded Moves . | . . . . . . . . . . . . . . . . . . . . . . . . . . . . . . . . . . . . . . . Propulsion Burnouts . | . . . . . . . . . . . . . . . . . . . . . . . . . . . . . . . . . . . . . . . Robots Hopped . | . . . . . . . . . . . . . . . . . . . . . . . . . . . . . . . . . . . . . . . Potential Cave-ins 33 | . . . . . . . . . . . . . . 4 . . . . . . . 3 . . . 8 . . . . . 3 . . . 15 . . Cave-ins Triggered 3 | . . . . . . . . 1 . . . . . . . . . . . . . 1 . . . 1 . . . . . . . . . . . . Teleports 1 | . . . . . . . . . . . . . . . . . . . . . . . . . . . . . . . . . . . . . 1 . Time Travels 1 | . . . . . . . . . . . . . . . . . . . . . . . . . . . . . . . . . . . 1 . . . Exploration Rate (%) 57 | 4 92 97 62 65 76 65 50 71 17 49 50 86 57 25 87 85 94 58 10 66 71 95 76 4 93 15 65 57 60 51 22 57 1 82 58 41 81 36 Regions Visited 38 Branch Regions 21 Pre-discovered Areas 22 | . 2 1 . 1 3 . 2 . 2 1 . 2 . 2 . . . 1 . 1 . . . . . . 1 . 3 . . . . . . . . . Known Exits Taken 16 | . 1 . . . 1 . 1 . 1 . . . 1 1 1 . 1 1 1 1 . . 1 . . 1 . . . . 1 . 1 . . 1 . . Unknown Exits Taken 16 | 1 . 1 1 1 . . . . . 1 1 1 . . . 1 . . . . 1 1 . . . . 1 1 1 1 . . . . 1 . 1 . Scrap Searched 22 | . . 1 . . . . . . . 4 1 3 1 . . . . . . 5 2 . 2 . . . 2 . . 1 . . . . . . . . Spaces Dug 288 | . 21 . . . 1 10 4 . 12 . . . . 13 . . . 5 11 13 13 1 3 5 . 17 16 9 . . 9 21 . 2 8 60 34 . Terrain Destroyed 1380 | . 61 52 . 6 3 17 7 135 13 . . . 17 16 14 . . 19 14 39 69 72 32 8 . 87 22 71 . 38 15 65 . 10 69 136 149 124 Melee 34 | . . . . . . . 4 . 4 . . . . 13 . . . . . . . . . . . 11 . . . . 2 . . . . . . . Projectile 601 | . 3 . . . 3 4 3 6 1 . . . 2 3 6 . . 19 14 8 20 6 9 8 . 10 . . . . 13 26 . 10 24 136 145 122 AOE 738 | . 58 52 . 6 . 13 . 129 8 . . . 15 . 8 . . . . 31 49 66 23 . . 65 22 71 . 38 . 39 . . 45 . . . Terrain Rammed . | . . . . . . . . . . . . . . . . . . . . . . . . . . . . . . . . . . . . . . . Walls Destroyed . | . . . . . . . . . . . . . . . . . . . . . . . . . . . . . . . . . . . . . . . Machines Disabled . | . . . . . . . . . . . . . . . . . . . . . . . . . . . . . . . . . . . . . . . Actions | -11 -10 -10 -10 -9 -8 -8 -8 -8 -7 -7 -7 -7 -6 -6 -6 -6 -6 -6 -5 -5 -5 -5 -4 -4 -4 -4 -4 -4 -4 -3 -3 -3 -3 -3 -2 -1 -1 -1 --------- Run | Yrd Mat Min Exi Min Mat Gar Mat Gar Fac Low Low Zio Pro Fac Ext Cet Arc Hub Fac Upp Upp War Pro Fac Was Fac Upp Upp Zhi Pro Res Gar Res DSF Res Acc Com Ac0 Total 31215 | 122 1578 578 582 319 1898 535 695 941 904 452 323 1057 420 999 827 328 279 643 312 559 672 719 798 272 356 1251 549 343 238 351 831 1130 33 224 1007 2026 5428 636 Wait 5311 | . 580 7 261 . 401 47 89 108 86 20 6 114 11 325 118 41 16 88 41 119 51 84 37 76 . 236 33 20 1 9 26 130 19 38 207 764 1035 67 Move 22454 | 92 869 544 301 306 1279 429 517 648 741 392 298 938 381 583 616 231 239 505 245 396 524 511 702 178 332 814 422 300 206 317 714 751 14 107 709 1060 3958 285 Hop . | . . . . . . . . . . . . . . . . . . . . . . . . . . . . . . . . . . . . . . . Pick Up 243 | 8 19 2 3 3 18 3 5 . 6 3 . 2 1 6 1 5 2 4 4 2 6 14 3 1 3 13 4 . 5 2 15 5 . 6 14 14 28 13 Fast Attach 171 | 5 8 . 1 . 15 1 . 1 1 1 2 . . 6 1 2 1 1 1 3 3 8 6 . 4 14 6 1 5 1 8 14 . 5 7 9 24 6 Attach 147 | 2 3 . . . 6 1 3 1 4 4 1 . 3 1 . 1 . 1 2 1 8 12 . 3 1 8 3 3 . 3 6 5 . 3 3 13 18 24 Detach 92 | . 3 . . . 8 . 1 . 1 1 1 . . . 1 1 . . 1 2 3 12 1 1 1 7 3 1 1 2 5 3 . 4 2 5 18 3 Swap 404 | . 4 5 6 5 17 9 15 17 16 7 5 1 3 27 16 10 5 10 3 7 15 7 10 2 4 12 5 4 2 1 9 12 . 12 16 26 40 39 Drop 323 | . 14 2 3 2 35 4 8 6 5 2 1 1 . 9 4 11 2 6 1 4 3 17 9 . 7 8 6 . 8 2 19 18 . 12 21 20 42 11 Fire 1710 | 13 74 18 7 3 118 33 50 105 35 22 9 . 21 29 36 16 5 26 14 16 44 50 30 11 4 116 58 14 . 7 24 92 . 32 28 114 248 188 Melee 81 | . . . . . . . 4 . 8 . . 1 . 13 . 10 9 . . . . . . . . 14 . . 10 7 5 . . . . . . . Ram . | . . . . . . . . . . . . . . . . . . . . . . . . . . . . . . . . . . . . . . . Kick 1 | . . . . . . . . . . . . . . . . . . . . . . . . . . . . . . . . 1 . . . . . . Crush 19 | 2 4 . . . 1 . 3 . 1 . . . . . 1 . . 2 . . . . . . . 3 . . . . . . . . . 1 1 . Escape Stasis 48 | . . . . . . 8 . 12 . . . . . . . . . . . . . 1 . . . 6 . . . . . 17 . 4 . . . . Rewire 206 | . . . . . . . . 43 . . . . . . 33 . . . . 9 15 . . . . . 9 . . . . 80 . 1 . . 16 . Trap 5 | . . . . . . . . . . . . . . . . . . . . . . 3 . . . . . . . . . 2 . . . . . . Miscellaneous . | . . . . . . . . . . . . . . . . . . . . . . . . . . . . . . . . . . . . . . . Route ------- -11/Scrapyard -10/Materials (discovered 5 exits: *Mat x3 / *Min / *Sub) -10/Mines (discovered 4 exits: *Mat x2 / *Exi / *Sub) -10/Exiles (discovered 2 exits: *Min x2) -9/Mines -8/Materials (discovered 2 exits: *Fac / Gar) -8/Garrison (discovered 4 exits: *Mat x4) -8/Materials (discovered 2 exits: *Fac / Gar) -8/Garrison (discovered 3 exits: *Fac x3) -7/Factory (discovered 6 exits: Fac x4 / *Low x2) -7/Lower Caves -7/Lower Caves -7/Zion -6/Proximity Caves -6/Factory (discovered 4 exits: Fac / Low / *Ext x2) -6/Extension (discovered 3 exits: *Fac x2 / *Cet) -6/Cetus (discovered 2 exits: *Fac / [*Arc]) -6/Archives (discovered 3 exits: *Fac / *Hub x2) -6/Hub_04(d) (discovered 4 exits: *Fac x4) -5/Factory (discovered 3 exits: Fac / *Upp x2) -5/Upper Caves -5/Upper Caves -5/Warlord -4/Proximity Caves -4/Factory (discovered 2 exits: Upp x2) -4/Waste -4/Factory (discovered 3 exits: *Res / *Upp x2) -4/Upper Caves -4/Upper Caves (discovered 2 exits: *Res / *Zhi) -4/Zhirov -3/Proximity Caves -3/Research (discovered 4 exits: *Arm / *Tes x2 / Gar) -3/Garrison (discovered 2 exits: *Res x2) -3/Research -3/DSF -2/Research (discovered 4 exits: *Acc x2 / [*Qua x2]) -1/Access (discovered 2 exits: Sur / *Com) -1/Command (discovered 3 exits: *Sur x2 / [*Ac0]) -1/Access_0 (discovered 1 exit: Sur) History --------- Turn | Location | Event 17 | -11/Scrapyard | Discovered new exit (range 16) 204 | -11/Scrapyard | Entered Materials 300 | -10/Materials | Build established: Mutant 927 | -10/Materials | Discovered new exit (range 14) 1444 | -10/Materials | Discovered new exit (range 7) 1520 | -10/Materials | Core integrity fell below 50% 1599 | -10/Materials | Discovered new exit (range 16) 1905 | -10/Materials | Discovered new exit (range 9) 2145 | -10/Materials | Identified exit to Mines 2145 | -10/Materials | Identified exit to Materials 2145 | -10/Materials | Identified exit to Subcaves 2206 | -10/Materials | Learned 4 Subcaves zone layouts 2207 | -10/Materials | Learned Storage emergency access door positions 2217 | -10/Materials | Learned 2 Storage zone layouts 2237 | -10/Materials | Learned Storage trap positions 2447 | -10/Materials | Entered Mines 2460 | -10/Mines | Discovered exit to Materials (range 7) 2756 | -10/Mines | Learned location of Zion (-7) 2766 | -10/Mines | Discovered exit to Materials (range 8) 2952 | -10/Mines | Deemed a non-threat by the Exiles lab entrance 2952 | -10/Mines | Discovered new exit (range 5) 3063 | -10/Mines | Discovered exit to Subcaves (range 9) 3389 | -10/Mines | Entered Exiles 3410 | -10/Exiles | Discovered new exit (range 15) 3429 | -10/Exiles | Met 8R-AWN 3457 | -10/Exiles | Met EX-HEX 3503 | -10/Exiles | Met EX-BIN 3529 | -10/Exiles | Aligned with FarCom system 3530 | -10/Exiles | Given EX-Vault access code 3569 | -10/Exiles | Opened EX-Vault 3582 | -10/Exiles | Found Chronowheel 3615 | -10/Exiles | Warned to stay clear of 0b10 Research branches 3638 | -10/Exiles | Exiles lab attacked by MAIN.C 3789 | -10/Exiles | Discovered new exit (range 12) 4166 | -10/Exiles | Left Exiles lab with Chronowheel 4166 | -10/Exiles | Entered Mines 4542 | -9/Mines | Discovered new exit (range 16) 4569 | -9/Mines | Found the Drone Emporium 4576 | -9/Mines | Found Prototype Device 4576 | -9/Mines | Identified Thief Drone Bay 4723 | -9/Mines | Entered Materials 4723 | -8/Materials | Evolved 4 slots: Propulsion x1, Utility x2, Weapon x1 5541 | -8/Materials | Build established: Scavenger-Skirmisher 5660 | -8/Materials | Destroyed 7 combat bots 5666 | -8/Materials | Lost 5 parts (2n1u2w) 5819 | -8/Materials | Repaired Lgt. Armor Plating 6556 | -8/Materials | Garrison activated, responded to threat 6800 | -8/Materials | Build established: Scavenger-Tank 7125 | -8/Materials | Learned Factory interactive machine intel 7211 | -8/Materials | Learned 4 Factory zone layouts 7237 | -8/Materials | Learned Factory trap positions 7275 | -8/Materials | Learned Factory stockpile data 7303 | -8/Materials | Learned location of Extension (-6) 7342 | -8/Materials | Learned 4 Factory zone layouts 7481 | -8/Materials | Discovered new exit (range 15) 7772 | -8/Materials | Garrison activated, responded to threat 8349 | -8/Materials | Identified exit to Garrison 8349 | -8/Materials | Entered Garrison 8403 | -8/Garrison | Triggered checkpoint 8450 | -8/Garrison | Build established: Scavenger-Skirmisher 8489 | -8/Garrison | Garrison Relay disabled 8509 | -8/Garrison | Garrison Relay disabled 8670 | -8/Garrison | Triggered checkpoint 8767 | -8/Garrison | Discovered new exit (range 10) 8799 | -8/Garrison | Discovered new exit (range 6) 8799 | -8/Garrison | Discovered new exit (range 50) 8799 | -8/Garrison | Discovered new exit (range 71) 8799 | -8/Garrison | Discovered new exit (range 63) 8822 | -8/Garrison | Learned Materials security intel 8822 | -8/Garrison | Learned Materials security intel 8992 | -8/Garrison | Triggered checkpoint 9019 | -8/Garrison | Destroyed 7 combat bots 9290 | -8/Garrison | Rescued a captive Derelict 9292 | -8/Garrison | Rescued a captive Derelict 9345 | -8/Garrison | Triggered checkpoint 9497 | -8/Garrison | Triggered checkpoint 9528 | -8/Garrison | Entered Materials 9528 | -8/Materials | Accompanied by 1 ally 9869 | -8/Materials | Discovered new exit (range 10) 10421 | -8/Materials | Learned location of 2 exits from Factory 10461 | -8/Materials | Learned location of 2 exits from Factory 10517 | -8/Materials | Learned 2 Storage zone layouts 10530 | -8/Materials | Learned location of 1 exit from Extension 10728 | -8/Materials | Identified exit to Garrison 10728 | -8/Materials | Entered Garrison 10799 | -8/Garrison | Triggered checkpoint 10848 | -8/Garrison | Garrison Relay disabled 10869 | -8/Garrison | System corruption reached 10% 11144 | -8/Garrison | Triggered checkpoint 11225 | -8/Garrison | Triggered checkpoint 11384 | -8/Garrison | Triggered checkpoint 11406 | -8/Garrison | Garrison Relay disabled 11788 | -8/Garrison | Triggered checkpoint 11832 | -8/Garrison | Lost 5 allies 11850 | -8/Garrison | Discovered new exit (range 14) 11856 | -8/Garrison | Triggered checkpoint 11988 | -8/Garrison | Triggered checkpoint 11996 | -8/Garrison | Core integrity fell below 50% 12032 | -8/Garrison | Crushed by falling debris 12339 | -8/Garrison | Rescued a captive Derelict 12341 | -8/Garrison | Rescued a captive Derelict 12426 | -8/Garrison | Discovered new exit (range 10) 12438 | -8/Garrison | Triggered checkpoint 12468 | -8/Garrison | Garrison Relay disabled 12681 | -8/Garrison | Phase Generator disabled 12708 | -8/Garrison | Discovered new exit (range 7) 12725 | -8/Garrison | Entered Factory 12725 | -7/Factory | Accompanied by 2 allies 12725 | -7/Factory | Evolved 2 slots: Propulsion x1, Utility x1 12726 | -7/Factory | Identified exit to Factory 12726 | -7/Factory | Identified exit to Lower Caves 12728 | -7/Factory | Loaded intel: 64 trap records 12730 | -7/Factory | Loaded intel: 52 interactive machine locations 13665 | -7/Factory | Learned Factory stockpile data 13858 | -7/Factory | Learned 4 Lower Caves zone layouts 13901 | -7/Factory | Learned 2 Upper Caves zone layouts 13934 | -7/Factory | Learned location of Proximity Caves (-3) 13984 | -7/Factory | Learned 2 Extension zone layouts 14024 | -7/Factory | Learned location of 1 exit from Proximity Caves 14144 | -7/Factory | Entered Lower Caves 14144 | -7/Lower Caves | Accompanied by 1 ally 14150 | -7/Lower Caves | Met a Warlord Commander 14151 | -7/Lower Caves | Learned location of Warlord (-5) 14152 | -7/Lower Caves | Warlord Commander delivered Encrypted Comm Array 14157 | -7/Lower Caves | Found Encrypted Comm Array 14198 | -7/Lower Caves | Learned Factory emergency access door positions 14466 | -7/Lower Caves | Build established: Scavenger-Gunner 14541 | -7/Lower Caves | Attacked by a faux Warlord 14579 | -7/Lower Caves | Lost 4 parts (2n1u1w) 14625 | -7/Lower Caves | Learned 8 Factory zone layouts 14805 | -7/Lower Caves | Build established: Gunner 14807 | -7/Lower Caves | Discovered new exit (range 6) 14886 | -7/Lower Caves | Entered another Lower Caves area 15062 | -7/Lower Caves | Learned Factory machine intel 15253 | -7/Lower Caves | Discovered new exit (range 7) 15410 | -7/Lower Caves | Entered Zion 15480 | -7/Zion | Discovered new exit (range 15) 15690 | -7/Zion | Learned location of Quarantine (-2) 15750 | -7/Zion | Learned location of 1 exit from Factory 15882 | -7/Zion | Acquired unknown access codes intercepted by a Zionite 16129 | -7/Zion | Build established: Mutant 16162 | -7/Zion | Rebuked by Imprinter 16219 | -7/Zion | Found CR-A16's Pointy Stick 16253 | -7/Zion | Learned location of 1 exit from Lower Caves 16449 | -7/Zion | Gained Derelict followers 16943 | -7/Zion | Gained Derelict followers 17013 | -7/Zion | Entered Proximity Caves 17013 | -6/Proximity Caves | Accompanied by 6 allies 17353 | -6/Proximity Caves | Build established: Gunner 17413 | -6/Proximity Caves | Lost 4 allies 17463 | -6/Proximity Caves | Learned 4 Factory zone layouts 17477 | -6/Proximity Caves | Ambushed by research squad 17519 | -6/Proximity Caves | Lost 3 parts (1p2n) 17806 | -6/Proximity Caves | Spotted B-75 Beast 17828 | -6/Proximity Caves | Entered Factory 17828 | -6/Factory | Evolved 2 slots: Power x1, Utility x1 17829 | -6/Factory | Identified exit to Extension 17830 | -6/Factory | Identified exit to Factory 17834 | -6/Factory | Loaded intel: 291 machine locations 18133 | -6/Factory | Build established: Skirmisher 19435 | -6/Factory | Learned location of 1 exit from Proximity Caves 19505 | -6/Factory | Identified exit to Lower Caves 19526 | -6/Factory | Learned 2 Upper Caves zone layouts 19536 | -6/Factory | Learned 2 Upper Caves zone layouts 19544 | -6/Factory | Learned 4 Factory zone layouts 19587 | -6/Factory | Learned location of 2 exits from Archives 19607 | -6/Factory | Entered Extension 19609 | -6/Extension | Identified exit to Cetus 19869 | -6/Extension | Rescued a captive Derelict 19870 | -6/Extension | Rescued a captive Derelict 20106 | -6/Extension | Rescued a captive Derelict 20120 | -6/Extension | Rescued a captive Derelict 20121 | -6/Extension | Rescued a captive Derelict 20376 | -6/Extension | Spotted B-75 Beast 20402 | -6/Extension | Spotted B-75 Beast 20412 | -6/Extension | Allies destroyed B-75 Beast 20428 | -6/Extension | Destroyed B-75 Beast 20458 | -6/Extension | Lost 6 allies 20471 | -6/Extension | Build established: Commander-Skirmisher 20544 | -6/Extension | Rescued a captive Derelict 20568 | -6/Extension | Energy Cycler disabled 20568 | -6/Extension | Rescued a captive Derelict 20568 | -6/Extension | Rescued a captive Derelict 20568 | -6/Extension | Rescued a captive Derelict 20569 | -6/Extension | Rescued a captive Derelict 20569 | -6/Extension | Rescued a captive Derelict 20570 | -6/Extension | Rescued A7 20570 | -6/Extension | Rescued a captive Derelict 20578 | -6/Extension | Rescued a captive Derelict 20583 | -6/Extension | Rescued a captive Derelict 20858 | -6/Extension | Entered Cetus 20858 | -6/Cetus | Accompanied by 10 allies (A7) 20863 | -6/Cetus | Acquired a Cetus Manufacturing Module code from A7 20879 | -6/Cetus | Spotted Cetus Guard 20880 | -6/Cetus | Spotted Cetus Guard 20881 | -6/Cetus | Spotted Cetus Guard 20881 | -6/Cetus | Spotted Cetus Guard 20887 | -6/Cetus | Allies destroyed Cetus Guard 20897 | -6/Cetus | Allies destroyed Cetus Guard 20911 | -6/Cetus | Destroyed Cetus Guard 20914 | -6/Cetus | Destroyed Cetus Guard 20937 | -6/Cetus | System corruption reached 10% 21074 | -6/Cetus | Escorted A7 to Cetus Mainframe 21091 | -6/Cetus | Started Cetus Manufacturing Module 21116 | -6/Cetus | Manufactured an Enhanced Grunt 21141 | -6/Cetus | Manufactured an Enhanced Grunt 21150 | -6/Cetus | Discovered new exit (range 22) 21166 | -6/Cetus | Manufactured an Enhanced Grunt 21184 | -6/Cetus | Spotted Cetus Guard 21184 | -6/Cetus | Spotted Cetus Guard 21184 | -6/Cetus | Spotted Cetus Guard 21184 | -6/Cetus | Spotted Cetus Guard 21191 | -6/Cetus | Manufactured an Enhanced Grunt 21197 | -6/Cetus | Destroyed Cetus Guard 21200 | -6/Cetus | Allies destroyed Cetus Guard 21210 | -6/Cetus | Destroyed Cetus Guard 21212 | -6/Cetus | Allies destroyed Cetus Guard 21216 | -6/Cetus | Manufactured an Enhanced Grunt 21220 | -6/Cetus | Discovered exit to Factory (range 21) 21230 | -6/Cetus | Build established: Commander-Tank 21238 | -6/Cetus | Lost 5 allies 21238 | -6/Cetus | Met Revision 17 21380 | -6/Cetus | Entered Archives 21380 | -6/Archives | Accompanied by 8 allies (A7) 21381 | -6/Archives | Identified exit to Hub_04(d) 21385 | -6/Archives | Received a hacking code to weaken MAIN.C 21478 | -6/Archives | Discovered exit to Hub_04(d) (range 21) 21766 | -6/Archives | Build established: Scavenger-Mutant 21834 | -6/Archives | Entered Hub_04(d) 21834 | -6/Hub_04(d) | Accompanied by 6 allies 21900 | -6/Hub_04(d) | Discovered exit to Factory (range 20) 22000 | -6/Hub_04(d) | Imp. Hacking Suite fried by hacking feedback 22184 | -6/Hub_04(d) | Learned Extension trap positions 22256 | -6/Hub_04(d) | Learned Extension emergency access door positions 22319 | -6/Hub_04(d) | Learned location of 1 exit from Cetus 22341 | -6/Hub_04(d) | Build established: Scavenger-Tank 22373 | -6/Hub_04(d) | Learned 12 Factory zone layouts 22416 | -6/Hub_04(d) | Learned location of 1 exit from Lower Caves 22474 | -6/Hub_04(d) | Learned 4 Upper Caves zone layouts 22508 | -6/Hub_04(d) | Learned 2 Lower Caves zone layouts 22569 | -6/Hub_04(d) | Network Hub disabled 22817 | -6/Hub_04(d) | Spotted Lightning 22825 | -6/Hub_04(d) | System corruption reached 30% 22829 | -6/Hub_04(d) | Entered Factory 22829 | -5/Factory | Evolved 2 slots: Power x1, Utility x1 22830 | -5/Factory | Identified exit to Upper Caves 22830 | -5/Factory | Identified exit to Factory 23303 | -5/Factory | Entered Upper Caves 23304 | -5/Upper Caves | Identified exit to Upper Caves 23331 | -5/Upper Caves | Encountered a Warlord checkpoint 23336 | -5/Upper Caves | Learned location of Armory (-3) 23528 | -5/Upper Caves | Learned Factory emergency access door positions 23589 | -5/Upper Caves | Attacked by a delusional Derelict stockpiling Unaware 24123 | -5/Upper Caves | Entered another Upper Caves area 24123 | -5/Upper Caves | Accompanied by 1 ally 24531 | -5/Upper Caves | Encountered a Warlord checkpoint 24536 | -5/Upper Caves | Spotted B-75 Beast 24623 | -5/Upper Caves | Destroyed B-75 Beast 24630 | -5/Upper Caves | Lost 3 allies 24687 | -5/Upper Caves | Learned Factory machine intel 24953 | -5/Upper Caves | Attracted the attention of an 0b10 outpost 25001 | -5/Upper Caves | System corruption reached 10% 25030 | -5/Upper Caves | Destroyed 8 combat bots 25031 | -5/Upper Caves | Lost 4 parts (1p3u) 25141 | -5/Upper Caves | Discovered new exit (range 12) 25257 | -5/Upper Caves | Entered Warlord 25257 | -5/Warlord | Accompanied by 3 allies 25374 | -5/Warlord | System corruption cleaned by Quarantine Array 25519 | -5/Warlord | Found Prototype Reactor 25519 | -5/Warlord | Identified Vortex Chain Reactor 25525 | -5/Warlord | Found Prototype Device 25525 | -5/Warlord | Identified Exp. Phase Shifter 25534 | -5/Warlord | Found Prototype Hackware 25543 | -5/Warlord | Found Prototype Device 25543 | -5/Warlord | Identified Exp. Focal Shield 25576 | -5/Warlord | Discovered new exit (range 54) 25737 | -5/Warlord | Found Prototype Special Weapon 25738 | -5/Warlord | Identified RU-N14's Throwing Claymores v3 25742 | -5/Warlord | Found RU-N14's Throwing Claymores v3 25746 | -5/Warlord | Found RU-N14's Throwing Claymores v3 25777 | -5/Warlord | Met Warlord 25792 | -5/Warlord | Warlord's base attacked by MAIN.C 25917 | -5/Warlord | Found Prototype Energy Cannon 25922 | -5/Warlord | Found Prototype Energy Cannon 26115 | -5/Warlord | Spotted Striker 26118 | -5/Warlord | P-80 Master assimilated allied N3-QS7(g) 26142 | -5/Warlord | Warlord forces counterattacked 26145 | -5/Warlord | P-70 Sage assimilated allied IP-GB4(Y) 26186 | -5/Warlord | Spotted Striker 26223 | -5/Warlord | Spotted B-75 Beast 26226 | -5/Warlord | Spotted B-86 Titan 26277 | -5/Warlord | Lost 18 allies 26286 | -5/Warlord | Crushed by falling debris 26293 | -5/Warlord | Spotted Striker 26293 | -5/Warlord | Spotted Executioner 26293 | -5/Warlord | Spotted Striker 26325 | -5/Warlord | Destroyed 8 combat bots 26325 | -5/Warlord | Spotted B-86 Titan 26339 | -5/Warlord | Found Prototype Ballistic Cannon 26339 | -5/Warlord | Identified Hvy. Autocannon 26373 | -5/Warlord | Lost 13 allies 26388 | -5/Warlord | Entered Proximity Caves 26396 | -4/Proximity Caves | Spotter reported a threat 26396 | -4/Proximity Caves | Spotter reported a threat 26512 | -4/Proximity Caves | Spotter reported a threat 27002 | -4/Proximity Caves | Derelict sapper outpost attacked 27076 | -4/Proximity Caves | Destroyed 9 combat bots 27179 | -4/Proximity Caves | Learned Research security intel 27210 | -4/Proximity Caves | Encountered a Derelict sapper outpost 27226 | -4/Proximity Caves | Identified Ghost Barrier 27717 | -4/Proximity Caves | Entered Factory 27717 | -4/Factory | Evolved 2 slots: Utility x2 27719 | -4/Factory | Loaded intel: 269 machine locations 27872 | -4/Factory | Identified exit to Upper Caves 27967 | -4/Factory | Search patrols dispatched 28149 | -4/Factory | Sucked down chute 28149 | -4/Factory | Entered Waste 28149 | -4/Waste | The area was eerily silent 28484 | -4/Waste | Discovered new exit (range 22) 28721 | -4/Waste | Entered Factory 28771 | -4/Factory | Identified Vortex Driver (x2) 28817 | -4/Factory | Build established: Hacker-Tank 29055 | -4/Factory | Crushed by falling debris 29098 | -4/Factory | Fabricated H-77 Assassin (x2) 29175 | -4/Factory | System corruption reached 10% 30368 | -4/Factory | Discovered new exit (range 5) 30453 | -4/Factory | Destroyed 8 combat bots 30471 | -4/Factory | First assault squad dispatched 31055 | -4/Factory | Entered Upper Caves 31056 | -4/Upper Caves | Encountered a Warlord checkpoint 31067 | -4/Upper Caves | Learned Research trap positions 31183 | -4/Upper Caves | Found Alien Artifact 31535 | -4/Upper Caves | Build established: Hacker-Mutant 31538 | -4/Upper Caves | Attracted the attention of an 0b10 checkpoint 31715 | -4/Upper Caves | Lost 4 parts (1p2u1w) 31800 | -4/Upper Caves | Discovered new exit (range 9) 32023 | -4/Upper Caves | Entered another Upper Caves area 32023 | -4/Upper Caves | Accompanied by 2 allies 32027 | -4/Upper Caves | Discovered new exit (range 18) 32048 | -4/Upper Caves | Attracted the attention of an 0b10 checkpoint 32397 | -4/Upper Caves | Destroyed 7 combat bots 32510 | -4/Upper Caves | Discovered new exit (range 14) 32541 | -4/Upper Caves | Spotted B-86 Titan 32549 | -4/Upper Caves | Entered Zhirov 32549 | -4/Zhirov | Discovered new exit (range 3) 32579 | -4/Zhirov | Met Zhirov 32609 | -4/Zhirov | Learned location of Command (-1) 32627 | -4/Zhirov | Zhirov requested help retrieving the SGEMP Prototype 32656 | -4/Zhirov | Found Alien Artifact 32656 | -4/Zhirov | Identified Integrated Reactor 32656 | -4/Zhirov | Installed Integrated Reactor, increased core energy generation (+10) 32675 | -4/Zhirov | Found Alien Artifact 32946 | -4/Zhirov | Entered Proximity Caves 33035 | -3/Proximity Caves | Attracted the attention of an 0b10 checkpoint 33336 | -3/Proximity Caves | Discovered new exit (range 15) 33467 | -3/Proximity Caves | Entered Research 33467 | -3/Research | Evolved 2 slots: Propulsion x1, Utility x1 33468 | -3/Research | Loaded intel: 60 trap records 33667 | -3/Research | Revision forces began assault on 0b10 33744 | -3/Research | Met up with Revision 17++ 33935 | -3/Research | Identified exit to Armory 33935 | -3/Research | Identified exit to Testing 34167 | -3/Research | Research terminal network offline 34190 | -3/Research | Found Prototype Processor 34191 | -3/Research | Identified Spectral Analyzer 34220 | -3/Research | Lost 3 allies 34479 | -3/Research | Build established: Hacker-Skirmisher 34482 | -3/Research | Found Unknown Device 34482 | -3/Research | Identified Launcher Loader 34617 | -3/Research | Identified exit to Garrison 34617 | -3/Research | Entered Garrison 34681 | -3/Garrison | Triggered checkpoint 34789 | -3/Garrison | Build established: Hacker-Mutant 34854 | -3/Garrison | Garrison Relay disabled 34902 | -3/Garrison | Triggered checkpoint 35115 | -3/Garrison | Triggered checkpoint 35279 | -3/Garrison | Triggered checkpoint 35407 | -3/Garrison | Build established: Hacker-Tank 35457 | -3/Garrison | Triggered checkpoint 35502 | -3/Garrison | Spotted B-90 Cyclops 35528 | -3/Garrison | Destroyed B-90 Cyclops 35546 | -3/Garrison | Rewired B-90 Cyclops 35607 | -3/Garrison | Found Quantum Capacitor 35662 | -3/Garrison | Discovered new exit (range 10) 35723 | -3/Garrison | Triggered checkpoint 35770 | -3/Garrison | Garrison Relay disabled 36029 | -3/Garrison | Triggered checkpoint 36119 | -3/Garrison | Triggered checkpoint 36325 | -3/Garrison | Garrison Relay disabled 36379 | -3/Garrison | Discovered new exit (range 11) 36443 | -3/Garrison | Entered Research 36443 | -3/Research | Accompanied by 1 ally 36459 | -3/Research | Build established: Scavenger-Tank 36497 | -3/Research | Identified exit to DSF 36497 | -3/Research | Entered DSF 36497 | -3/DSF | Accompanied by 1 ally 36514 | -3/DSF | Additional patrols routed to DSF 36758 | -3/DSF | Sterilization system engaged 36778 | -3/DSF | Ambient heat levels rising (+10) 36793 | -3/DSF | Ambient heat levels rising (+10) 36808 | -3/DSF | Ambient heat levels rising (+10) 36823 | -3/DSF | Ambient heat levels rising (+10) 36838 | -3/DSF | Ambient heat levels rising (+10) 36853 | -3/DSF | Ambient heat levels rising (+10) 36868 | -3/DSF | Ambient heat levels rising (+10) 36883 | -3/DSF | Ambient heat levels rising (+10) 36893 | -3/DSF | Discovered new exit (range 15) 36898 | -3/DSF | Ambient heat levels rising (+10) 36913 | -3/DSF | Ambient heat levels rising (+10) 36928 | -3/DSF | Ambient heat levels rising (+10) 36934 | -3/DSF | Entered Research 36934 | -2/Research | Warlord forces began assault on 0b10 36934 | -2/Research | Evolved 2 slots: Propulsion x1, Utility x1 36959 | -2/Research | Distinguished unit "Bridgeowners Association" dispatched to help 36959 | -2/Research | Distinguished unit "Lucky Slug" dispatched to help 36996 | -2/Research | Build established: Hacker-Tank 37044 | -2/Research | Research machine network offline 37049 | -2/Research | Spotted B-90 Cyclops 37172 | -2/Research | Borebot progress halted 37253 | -2/Research | Discovered new exit (range 5) 37336 | -2/Research | Discovered new exit (range 16) 37336 | -2/Research | Spotted B-90 Cyclops 37444 | -2/Research | Met DD-05H 37515 | -2/Research | Warlord destroyed during the assault 37564 | -2/Research | Discovered new exit (range 15) 37699 | -2/Research | Build established: Scavenger-Tank 37833 | -2/Research | Spotted Executioner 37838 | -2/Research | Spotted Executioner 37864 | -2/Research | Found Prototype Processor 37864 | -2/Research | Identified Exp. Core Analyzer 37867 | -2/Research | Found Prototype Device 37867 | -2/Research | Identified Adv. Kinecellerator 37892 | -2/Research | Found Prototype Processor 37897 | -2/Research | Discovered new exit (range 82) 38272 | -2/Research | Activated Chronowheel 38272 | -2/Research | Spacetime reconverged on an earlier point 38300 | -2/Research | Build established: Hacker-Tank 38412 | -2/Research | Entered Access 38412 | -1/Access | Evolved 2 slots: Utility x2 38581 | -1/Access | Garrison activated, responded to threat 38624 | -1/Access | Lost 6 allies 38878 | -1/Access | Found Adv. Powered Armor 38881 | -1/Access | Found Adv. Powered Armor 38992 | -1/Access | Build established: Hacker-Skirmisher 39464 | -1/Access | Build established: Hacker-Tank 39738 | -1/Access | Spotted B-99 Colossus 40101 | -1/Access | Identified exit to Surface 40192 | -1/Access | Identified Dimensional Node Initializer 40192 | -1/Access | Identified Transdimensional Reconstructor 40192 | -1/Access | Identified Exp. Targeting Computer 40226 | -1/Access | Loaded intel: 58 trap records 40358 | -1/Access | System corruption reached 10% 40661 | -1/Access | Identified exit to Command 40669 | -1/Access | Build established: Scavenger-Tank 40912 | -1/Access | First assault squad dispatched 41331 | -1/Access | Entered Command 42325 | -1/Command | Spotted M Guard 42326 | -1/Command | Spotted M Guard 42357 | -1/Command | Destroyed M Guard 42361 | -1/Command | Spotted Combat Programmer 42361 | -1/Command | Spotted Combat Programmer 42394 | -1/Command | Destroyed Combat Programmer 42396 | -1/Command | Destroyed Combat Programmer 42420 | -1/Command | Destroyed M Guard 42420 | -1/Command | All MAIN.C guards destroyed 42681 | -1/Command | Met MAIN.C 42691 | -1/Command | 0b10 Conduit disabled 42713 | -1/Command | Destroyed MAIN.C Shell 42715 | -1/Command | MAIN.C activated Command garrisons 42731 | -1/Command | Destroyed MAIN.C 42747 | -1/Command | Discovered exit to Surface (range 43) 42747 | -1/Command | Discovered exit to Surface (range 92) 42747 | -1/Command | Extracted map data and part IDs from MAIN.C's data core 42758 | -1/Command | Spotted B-99 Colossus 42931 | -1/Command | P-80 Master assimilated allied I-47 Archangel 43214 | -1/Command | Build established: Scavenger-Mutant 43739 | -1/Command | Found Exp. System Purifier 43940 | -1/Command | Found Vortex Chain Reactor 43943 | -1/Command | Found Zero-point Reactor 43965 | -1/Command | Found Exp. Force Field 43969 | -1/Command | Found Exp. Focal Shield 44061 | -1/Command | Found Corrupted Multirail 44064 | -1/Command | Found Corrupted Multirail 44287 | -1/Command | Found Exp. Targeting Computer 44351 | -1/Command | Build established: Scavenger-Tank 45921 | -1/Command | Found Corrupted Exp. Target Analyzer 46196 | -1/Command | Initialized slip node 46490 | -1/Command | Build established: Scavenger-Gunner 48163 | -1/Command | Found Hvy. Reactive Plating 48450 | -1/Command | Build established: Scavenger-Tank 48812 | -1/Command | Warped through subspace to slip node 48812 | -1/Command | Discovered new exit (range 5) 48898 | -1/Command | Entered Access_0 48901 | -1/Access_0 | Met Architect 48926 | -1/Access_0 | Destroyed A8 48933 | -1/Access_0 | Architect warped through subspace 48946 | -1/Access_0 | Found Exp. Thermal Shield 48995 | -1/Access_0 | Architect warped through subspace 49054 | -1/Access_0 | Architect warped through subspace 49105 | -1/Access_0 | Architect warped through subspace 49153 | -1/Access_0 | Architect warped through subspace 49210 | -1/Access_0 | Architect warped through subspace 49260 | -1/Access_0 | Architect warped through subspace 49274 | -1/Access_0 | Found Exp. Powered Armor 49276 | -1/Access_0 | Found Exp. Powered Armor 49295 | -1/Access_0 | Architect warped through subspace 49304 | -1/Access_0 | Subspace Access Node disabled 49318 | -1/Access_0 | Found Exp. Phase Shifter 49330 | -1/Access_0 | Architect warped through subspace 49365 | -1/Access_0 | Architect warped through subspace 49417 | -1/Access_0 | Architect warped through subspace 49432 | -1/Access_0 | A6 warped into view 49463 | -1/Access_0 | Destroyed A6 49492 | -1/Access_0 | Architect warped through subspace 49512 | -1/Access_0 | Core integrity fell below 50% 49518 | -1/Access_0 | Architect warped through subspace 49534 | -1/Access_0 | Found Exp. Phase Shifter 49559 | -1/Access_0 | Architect warped through subspace 49568 | -1/Access_0 | Found Exp. Weapon Cycler 49583 | -1/Access_0 | Architect warped through subspace 49618 | -1/Access_0 | Architect warped through subspace 49643 | -1/Access_0 | Architect warped through subspace 49666 | -1/Access_0 | Architect warped through subspace 49688 | -1/Access_0 | Architect warped through subspace 49712 | -1/Access_0 | Architect warped through subspace 49722 | -1/Access_0 | Architect warped through subspace 49755 | -1/Access_0 | Architect warped through subspace 49763 | -1/Access_0 | Subspace Access Node disabled 49786 | -1/Access_0 | Architect warped through subspace 49834 | -1/Access_0 | Architect warped through subspace 49845 | -1/Access_0 | Architect warped through subspace 49851 | -1/Access_0 | A5 warped into view 49875 | -1/Access_0 | Architect warped through subspace 49881 | -1/Access_0 | Core integrity fell below 20% 49882 | -1/Access_0 | Lost 11 parts (2p1n5u3w) 49920 | -1/Access_0 | Destroyed by Architect with Modified Sigix Sheargun Last Messages --------------- 49901_ Quantum Shear penetrates Wall. 49901_ Penetrated by Quantum Shear. 49902_ HV Slug penetrates Architect. 49902_ Architect suffers critical hit (Destroy). 49902_ Destroyed Zero-point Reactor. 49902_ HV Slug penetrates Architect. 49902_ Architect suffers critical hit (Destroy). 49902_ Destroyed Exp. Phase Shifter. 49903_ Penetrated by Quantum Shear. 49903_ Hyp. Linear Accelerator destroyed. 49904_ HV Slug penetrates Architect. 49906_ Architect suffers critical hit (Destroy). 49906_ Destroyed Alien Energy Gun. 49907_ HV Slug penetrates Architect. 49908_ Penetrated by Quantum Shear. 49909_ Architect regenerates Zero-point Reactor. 49911_ Penetrated by Quantum Shear. 49915_ Biometal Heavy Treads destroyed. 49918_ Penetrated by Quantum Shear. 49919_ Architect regenerates Exp. Phase Shifter. Map ----- +----------------------------------------------------+ | ?????????????????????????????????????????????????? | | ?????????????????????????????????????????????????? | | ?????????????????????????????????????????????????? | | ?????????????????????????????????????????????????? | | ??????????????????????????????????????????????###? | | ????????????????????????? ???????????????????? ? | | ???????????????????????? #??????????????????? ? | | ???????????????????????? ??????????????????? #? | | ????????????????????????# ??????????###????? #? | | ????????????????????????# ?????##?## ?????? #? | | ????????????????????????? ##### ## ??????? #? | | ????????????????????????? ??????? #? | | ?????????????????????????? ???????? #? | | ??????????????????????????? ????????# #? | | ??????????????????????????? #????????# #? | | ???????????????????????????? ##??????## ## | | ????????????????????????????? ?????### # | | ????????????????????????????? ??????? # | | ?????????????????????????????? #??###???# # | | ??????????????????????????????# ##?# #?### | | ?????????????????????????????## #?# ### | | ??????????????????????????#### ### ;;#; #? | | ?????????????????????????## ;;;; ;;; ### | | ?????????????????????##### ;;; #"# | | ????? ######## %##;;;; ;; | | ???# ;;;;;;;; 0% ;@ ;; | | ????# %% ;#" """ | | ????# # ;###?##"" | | ?????## #### ????# ;; #?# | | ????????????????# ; * ;#####?# ## | | ????????????????# ### p # #????##?# | | ????????????????#???# % ;#?#??????## | | ????????????????????# ##??????# " | | ?????????????????? ;; #; ###### #???#### " | | ?????????????????##### ##;###????# ##### # "" | | ?????????????????????# #?###??????# # " """ | | ?????????????????????## ???????????# """ "" | | ??????????????????????##???????????# #" | | ???????????????????????????????????# | | ??????????????????????????????????#" ""#"" | | ??????????????????????????????????## "##### | | ???????????????????????????????????# "##???# | | ??????????????????????????????????#"" ##????# | | ??????????????????????????????????# " "#???? # | | ??????????????????????????????????# # "#??? | | ????????????????????????????????### " "### | | ????????????????????????????????#"""" "" | | ?????????????? ????????????????##" ## | | ?????????????? ?????????????# #? | | ?????????????? ????????????# "### | +----------------------------------------------------+ Best States ------------- Heat Dissipation 170 Coolant Potential 120 Energy Generation 93 Energy Capacity 950 Matter Stores 624 Matter Capacity 800 Sight Range 24 Robot Scan Range 18 Terrain Scan Range 20 Terrain Scan Density 135 Jamming Range 16 Power Amplification 30 Armor Coverage 2050 Resistance: KI 40 Resistance: TH 30 Core Shielding 30 Weapon Shielding 90 Weapon Cycling 30 Phase Shifting 20 Evasion (%) 60 Targeting Accuracy 24 Target Analysis 10 Core Analysis 8 Recoil Reduction 6 Energy Filtering 50 Particle Charging 30 Salvage Targeting 4 Offensive Hacking 30 Defensive Hacking 30 Trap Extractor Capacity 8 Item Schematics ----------------- Lgt. Assault Rifle | -8/Materials | Extracted Mace | -8/Materials | Extracted Imp. Shield Generator | -7/Zion | Archive Matter Compressor | -7/Zion | Archive Gatling Laser | -7/Zion | Archive Arm. Leg | -7/Zion | Archive Plasma Cannon | -7/Zion | Archive Lgt. Fission Core | -7/Zion | Archive Proton Missile Launcher | -7/Zion | Archive Imp. Transmission Jammer | -7/Zion | Archive Adv. Plasma Cannon | -7/Zion | Archive Hvy. Ion Cannon | -7/Zion | Archive Matter Filter | -7/Zion | Archive Fusion Compressor | -7/Zion | Archive Imp. Actuator Array | -7/Zion | Archive Adv. ECM Suite | -7/Zion | Archive Tiamat Missile Launcher | -7/Zion | Archive Assault Drone Bay | -4/Zhirov | Free Exp. Heat Sink | -4/Zhirov | Free Exp. Optical Array | -4/Zhirov | Free Imp. Arc Thrower | -4/Zhirov | Free Adv. Force Field | -3/Research | Hacked Robot Schematics ------------------ B-48 Gladiator | -7/Zion | Archive C-17 Slicer | -7/Zion | Archive Y-54 Guardian | -7/Zion | Archive Fabricated ------------ H-77 Assassin | x2 | -4/Factory | Preloaded Repaired ---------- Lgt. Armor Plating | 43% | -8/Materials Alien Tech Used ----------------- Integrated Reactor Dimensional Node Initializer Transdimensional Reconstructor Achievements -------------- None Challenges ------------ None Game ------ Seed PitchforkBarrageCapacitor Manual? 0 Play Time 09:26:13 Cumulative 531.8 hours Start 2025.08.22 @ 16:14:12 End 2025.10.04 @ 17:51:27 Sessions 36 Manual Loads 0 Difficulty Rogue Special Mode None Game No. 225 Rogue 225 Adventurer 0 Explorer 0 Win Type - Total 19 Types 10/2/6/1/0/0/0/0/0/0 Lore% 90 Gallery% 87 Achievement% 78 Wizard Run 0 Options --------- Layout 0 ASCII 0 Keyboard 1 Movement Numpad Keybinds 0 Fullscreen 2 Font 12/Smallcaps Map View 76x50 Zoom Use 0% Tactical HUD 1 Map Filters NONE Filters NONE Steam 1 RUN: c1f6d7a1-733c-4b9c-9367-654b49e5874b